Workbook

Sheet Readme
A2: Ctrl k | B2: Start Iterations, results in b (normalized), PrN (External Rating)
B3: Find Pr | Actual score W = Expected Score We
A5: Alt F11 | B5: Visual Basic
A6: Alt F8 | B6: Visual Basic
A7: Esc | B7: Interrupt VBA
A10: Worksheet >>> VBA
A11: BRtg | B11: Opponents Ratings (Fixed)
A12: Rk(-1), debug | B12: Player to debug (show intermediate results below data)
A13: Prn(-1) | B13: Maximum rating difference (Rule of 400 points)
A14: Conv(-1) (EpsM, tolerance) | B14: Solved when abs(b-bx) < EpsM
A15: b(-1) | B15: Limits Secant iteration step
A16: N(-4) | B16: Win character game file
A17: N(-3) | B17: Draw Character
A18: N(-2) | B18: Lost Character
A20: Game file | B20: Results
B21: <player><Colour><result> + blank line below + right (=excel current region)
A23: VBA >>> Worksheet
A24: BRtg(-1) | B24: Number of players
A25: fb(-2) | B25: Infinity
A27: Parms
A28: Iteration method | B28: Zermelo
B29: Standaard
B30: Diagonal Descent
A31: Expectation functions | B31: Logistic
B32: Gauss
B33: Sech (Hyperbolic Secant)
B34: Sinh (Sinus Hyperbolicus), Unbounded with increasing slope
B35: Table (Simulate Table)
B36: Test (E=C), pathalogical functions
A37: Xscale | B37: s (Logistic), Sigma (Gauss)
A40: Output model
A41: Rk | B41: Rank
A42: BRtg | B42: Opponent Rating
A43: Player | B43: Name
A44: PrN | B44: Performance Rating
A45: Conv | B45: Convergence tolerance, abs(b - bx)
A46: b | B46: Current Pr
A47: fb | B47: Expected result
A48: bx | B48: previous Pr
A49: fbx | B49: Expected result
A50: CtrM | B50: Iterations
A51: We | B51: Expected result Pr
A52: W | B52: Actual Score
A53: N | B53: Number of games
A57: Uitleg | B57: http://www.damclubijmuiden.nl/OnderlingeComp/performance-rating/index-performance-rating.html
B58: http://en.wikipedia.org/wiki/Root-finding_algorithm
B59: http://en.wikipedia.org/wiki/Brent%27s_method
A60: Keywords | B60: Wijngaarden, TJ Dekker, Brents method, derivative free root finding secant

Sheet Model-UV
B2: Solve dependent | D2: 50 | E2: ="CTRL k = "&D2&" iteraties" -> CTRL k = 50 iteraties | P2: Gauss | Q2: Logistic | R2: Lorenz | S2: Sech | T2: Lineair | U2: Sinh | V2: Tanh | W2: Constant | X2: Test | Y2: <<< Copy paste values to Parms
B3: Performance Rating | E3: Esc = Interrupt | P3: 285.82 | Q3: 173.7177928 | R3: 255 | S3: 400 | T3: 212.5 | U3: 800 | V3: 800 | W3: 100 | X3: 100
B4: Result in b, PrN
L8: 0.2499979167 | N8: 1
L9: Parms | N9: ½
A10: Debug | D10: Max Diff | F10: EpsM | G10: Limit S | K10: =MAX(CtrM) -> 0 | L10: Logistic | M10: =Expectation | N10: 0 | O10: 32
B11: 76 | F11: 0.1 | G11: =ROUND(MAX(LN(O10),1/L8),0)*L11 -> 694.871171 | K11: =SUM(CtrM)/MAX(B11,1) -> 0 | L11: 173.7177928 | M11: =Xscale | N11: # Games | O11: Game file
A12: Rk | B12: BRtg | C12: Player | D12: PrN | F12: Diff | G12: b | H12: fb | I12: bx | J12: fbx | K12: CtrM | L12: We | M12: W | N12: N | O12: Rd1 | P12: Rd2 | Q12: Rd3 | R12: Rd4 | S12: Rd5 | T12: Rd6 | U12: Rd7 | V12: Rd8 | W12: Rd9 | X12: Rd10 | Y12: Rd11 | Z12: Rd12 | AA12: Rd13 | AB12: Rd14 | AC12: Rd15 | AD12: Rd16 | AE12: Rd17 | AF12: Rd18 | AG12: Rd19 | AH12: Rd20 | AI12: Rd21 | AJ12: Rd22 | AK12: Rd23 | AL12: Rd24 | AM12: Rd25 | AN12: Rd26 | AO12: Rd27 | AP12: Rd28 | AQ12: Rd29 | AR12: Rd30 | AS12: Rd31 | AT12: Rd32
A13: 1 | B13: 1984 | O13: 52w1 | P13: 11z1 | Q13: 16w1 | R13: 8z1 | S13: 2w½ | T13: 7z1 | U13: 30w1 | V13: 9w1 | W13: afwmm | X13: 12z0 | Y13: afwmm | Z13: aclad | AA13: afwmm | AB13: 10w1 | AC13: 35z1 | AD13: 3w1 | AE13: 4z1 | AF13: 6w1 | AG13: 13z1 | AH13: afwmm | AI13: aclub | AJ13: 2z0 | AK13: 5w½ | AL13: 26w1 | AM13: 14z1 | AN13: 11w1 | AO13: 21z½ | AP13: 7w1 | AQ13: 3z1 | AR13: aclad | AS13: aclad | AT13: aclad
A14: 2 | B14: 2142 | O14: 25w1 | P14: aclad | Q14: 14z1 | R14: 4w1 | S14: 1z½ | T14: 20w1 | U14: 3z½ | V14: 7w0 | W14: afwmm | X14: 9z1 | Y14: 12w1 | Z14: aclad | AA14: 32z½ | AB14: 17w1 | AC14: 6z½ | AD14: 47w1 | AE14: 10z1 | AF14: aclub | AG14: 5w1 | AH14: 26z1 | AI14: aclub | AJ14: 1w1 | AK14: 8w1 | AL14: afwmm | AM14: aclub | AN14: 7z1 | AO14: 11z1 | AP14: 6w0 | AQ14: 4z0 | AR14: afwmm | AS14: afwmm | AT14: afwmm
A15: 3 | B15: 1938 | O15: 29w1 | P15: 14z½ | Q15: 18w1 | R15: 10z1 | S15: aclub | T15: afwmm | U15: 2w½ | V15: 30z½ | W15: 7z0 | X15: aclub | Y15: 4w1 | Z15: 5w1 | AA15: aclub | AB15: afwmm | AC15: afwmm | AD15: 1z0 | AE15: 12z1 | AF15: aclub | AG15: 6w0 | AH15: 35w½ | AI15: afwmm | AJ15: 8z1 | AK15: aclub | AL15: 11w1 | AM15: aclub | AN15: 26z1 | AO15: aclad | AP15: afwmm | AQ15: 1w0 | AR15: aclub | AS15: 5z½ | AT15: 4z1
A16: 4 | B16: 1791 | O16: 47z1 | P16: aclad | Q16: 33w1 | R16: 2z0 | S16: aclub | T16: 5z1 | U16: afwmm | V16: afwmm | W16: 10w½ | X16: aclub | Y16: 3z0 | Z16: 9w1 | AA16: aclub | AB16: 12w½ | AC16: 7z0 | AD16: 11w1 | AE16: 1w0 | AF16: afwmm | AG16: 18z1 | AH16: 6z1 | AI16: 26w0 | AJ16: 35z1 | AK16: aclub | AL16: 5w1 | AM16: 13z½ | AN16: 10z1 | AO16: aclad | AP16: 17w1 | AQ16: 2w1 | AR16: aclub | AS16: 8z0 | AT16: 3w0
A17: 5 | B17: 1953 | O17: 13z1 | P17: 30w1 | Q17: 37z½ | R17: 7w0 | S17: 22z1 | T17: 4w0 | U17: 10z0 | V17: 18w1 | W17: 20w1 | X17: 21z1 | Y17: 52w1 | Z17: 3z0 | AA17: 34w½ | AB17: 11z1 | AC17: 12z0 | AD17: 8w½ | AE17: 9w1 | AF17: aclub | AG17: 2z0 | AH17: afwmm | AI17: 63z1 | AJ17: 6w½ | AK17: 1z½ | AL17: 4z0 | AM17: aclub | AN17: 14w1 | AO17: 26w1 | AP17: 18z1 | AQ17: 7z1 | AR17: 12w½ | AS17: 3w½ | AT17: 29z1
A18: 6 | B18: 1666 | O18: 8w0 | P18: 54z1 | Q18: 48w1 | R18: 21z1 | S18: 12w1 | T18: 30w0 | U18: 27z½ | V18: 23z1 | W18: 13w1 | X18: aclub | Y18: afwmm | Z18: 7z0 | AA18: aclub | AB18: 32w½ | AC18: 2w½ | AD18: 9z½ | AE18: 35w1 | AF18: 1z0 | AG18: 3z1 | AH18: 4w0 | AI18: 12z½ | AJ18: 5z½ | AK18: aclub | AL18: 29w1 | AM18: afwmm | AN18: 13z1 | AO18: aclub | AP18: 2z1 | AQ18: 11w1 | AR18: 7w½ | AS18: 10z0 | AT18: 8z½
A19: 7 | B19: 2013 | O19: 18z½ | P19: 9w1 | Q19: 17w1 | R19: 5z1 | S19: afwmm | T19: 1w0 | U19: 32z1 | V19: 2z1 | W19: 3w1 | X19: 53z1 | Y19: 14w1 | Z19: 6w1 | AA19: 12z½ | AB19: 35z½ | AC19: 4w1 | AD19: 10w0 | AE19: 47z1 | AF19: aclub | AG19: 11w1 | AH19: afwmm | AI19: 9z1 | AJ19: 26z0 | AK19: afwmm | AL19: 13w½ | AM19: afwmm | AN19: 2w0 | AO19: 10z0 | AP19: 1z0 | AQ19: 5w0 | AR19: 6z½ | AS19: afwmm | AT19: 12w1
A20: 8 | B20: 1855 | O20: 6z1 | P20: 12w½ | Q20: 31z1 | R20: 1w0 | S20: 37z0 | T20: 27z0 | U20: afwmm | V20: 54w1 | W20: 16w1 | X20: afwmm | Y20: afwmm | Z20: 26z1 | AA20: 49w1 | AB20: 29z½ | AC20: 9w0 | AD20: 5z½ | AE20: 23w1 | AF20: 11z0 | AG20: 14z1 | AH20: 32w1 | AI20: aclub | AJ20: 3w0 | AK20: 2z0 | AL20: afwmm | AM20: 10w½ | AN20: 12z½ | AO20: afwmm | AP20: 20w1 | AQ20: 13w1 | AR20: 16z1 | AS20: 4w1 | AT20: 6w½
A21: 9 | B21: 1695 | O21: bye | P21: 7z0 | Q21: 61z1 | R21: 28w1 | S21: 11z1 | T21: 37w1 | U21: 34w1 | V21: 1z0 | W21: 35w0 | X21: 2w0 | Y21: 13z1 | Z21: 4z0 | AA21: 21w½ | AB21: winst | AC21: 8z1 | AD21: 6w½ | AE21: 5z0 | AF21: 32w1 | AG21: 12w1 | AH21: 10z½ | AI21: 7w0 | AJ21: 11w0 | AK21: 64z1 | AL21: 14z0 | AM21: 16w1 | AN21: 18z0 | AO21: 29z0 | AP21: 30w1 | AQ21: 26w1 | AR21: afwmm | AS21: 27z1 | AT21: 15w1
A22: 10 | B22: 1815 | O22: 36z½ | P22: 46w1 | Q22: 43z1 | R22: 3w0 | S22: aclub | T22: 23z½ | U22: 5w1 | V22: 20z1 | W22: 4z½ | X22: aclub | Y22: 30w0 | Z22: 14w1 | AA22: aclub | AB22: 1z0 | AC22: 32w1 | AD22: 7z1 | AE22: 2w0 | AF22: 12z½ | AG22: 26w0 | AH22: 9w½ | AI22: 11z½ | AJ22: 13z0 | AK22: aclub | AL22: 35w½ | AM22: 8z½ | AN22: 4w0 | AO22: 7w1 | AP22: 29z½ | AQ22: 18w1 | AR22: aclub | AS22: 6w1 | AT22: 17z0
A23: 11 | B23: 1836 | O23: 23w1 | P23: 1w0 | Q23: 28z½ | R23: 18z1 | S23: 9w0 | T23: 26w1 | U23: 38z1 | V23: afwmm | W23: 12w0 | X23: 27z1 | Y23: 32z0 | Z23: 52w1 | AA23: 24z1 | AB23: 5w0 | AC23: 30w1 | AD23: 4z0 | AE23: 21z1 | AF23: 8w1 | AG23: 7z0 | AH23: 29w1 | AI23: 10w½ | AJ23: 9z1 | AK23: afwmm | AL23: 3z0 | AM23: 18w1 | AN23: 1z0 | AO23: 2w0 | AP23: 12z1 | AQ23: 6z0 | AR23: 21w1 | AS23: 14z½ | AT23: 13z1
A24: 12 | B24: 1675 | O24: 32w1 | P24: 8z½ | Q24: 72w1 | R24: afwmm | S24: 6z0 | T24: 53w½ | U24: 21w½ | V24: 36z1 | W24: 11z1 | X24: 1w1 | Y24: 2z0 | Z24: 30z1 | AA24: 7w½ | AB24: 4z½ | AC24: 5w1 | AD24: 14z1 | AE24: 3w0 | AF24: 10w½ | AG24: 9z0 | AH24: 13w1 | AI24: 6w½ | AJ24: afwmm | AK24: aclub | AL24: 18z0 | AM24: 31z0 | AN24: 8w½ | AO24: aclub | AP24: 11w0 | AQ24: 21z1 | AR24: 5z½ | AS24: 17w½ | AT24: 7z0
A25: 13 | B25: 1704 | O25: 5w0 | P25: afwmm | Q25: 65z1 | R25: afwmm | S25: aclad | T25: afwmm | U25: 56z1 | V25: 24w1 | W25: 6z0 | X25: aclub | Y25: 9w0 | Z25: 38w1 | AA25: aclub | AB25: 21z½ | AC25: 26w1 | AD25: 34z1 | AE25: afwmm | AF25: 18w1 | AG25: 1w0 | AH25: 12z0 | AI25: 57z1 | AJ25: 10w1 | AK25: afwmm | AL25: 7z½ | AM25: 4w½ | AN25: 6w0 | AO25: aclub | AP25: 26z1 | AQ25: 8z0 | AR25: aclub | AS25: aclad | AT25: 11w0
A26: 14 | B26: 1779 | O26: 68z1 | P26: 3w½ | Q26: 2w0 | R26: 43z1 | S26: aclub | T26: 32w½ | U26: afwmm | V26: 72z1 | W26: 30w1 | X26: aclub | Y26: 7z0 | Z26: 10z0 | AA26: aclub | AB26: afwmm | AC26: 29w1 | AD26: 12w0 | AE26: 18z0 | AF26: 46z1 | AG26: 8w0 | AH26: 25z½ | AI26: 47w1 | AJ26: 27z1 | AK26: afwmm | AL26: 9w1 | AM26: 1w0 | AN26: 5z0 | AO26: aclad | AP26: 23w1 | AQ26: 17z0 | AR26: aclub | AS26: 11w½ | AT26: 19z1
A27: 15 | B27: 1634 | O27: 17z0 | P27: 43w½ | Q27: 46z0 | R27: 26z0 | S27: 61w1 | T27: aclub | U27: 42z1 | V27: 40w½ | W27: 19z1 | X27: 33w0 | Y27: aclad | Z27: 47z0 | AA27: afwmm | AB27: aclub | AC27: 16w½ | AD27: 55z1 | AE27: 22w1 | AF27: 20w½ | AG27: 34z½ | AH27: afwmm | AI27: 23w1 | AJ27: 46w½ | AK27: 28z1 | AL27: aclub | AM27: afwmm | AN27: 21w0 | AO27: afwmm | AP27: aclub | AQ27: 20z1 | AR27: 18w1 | AS27: aclub | AT27: 9z0
A28: 16 | B28: 1575 | O28: 42w1 | P28: 25z1 | Q28: 1z0 | R28: 24w½ | S28: 34w0 | T28: aclub | U28: afwmm | V28: 71z½ | W28: 8z0 | X28: 44w1 | Y28: 20z0 | Z28: 28w0 | AA28: 26w0 | AB28: aclub | AC28: 15z½ | AD28: 19z1 | AE28: 60w1 | AF28: 53w1 | AG28: afwmm | AH28: 49z1 | AI28: 30w1 | AJ28: 29z0 | AK28: 37w1 | AL28: aclub | AM28: 9z0 | AN28: 27w½ | AO28: 57z1 | AP28: aclub | AQ28: 25w1 | AR28: 8w0 | AS28: aclub | AT28: 63z½
A29: 17 | B29: 1790 | O29: 15w1 | P29: aclad | Q29: 7z0 | R29: afwmm | S29: aclub | T29: afwmm | U29: 73w1 | V29: afwmm | W29: afwmm | X29: aclub | Y29: afwmm | Z29: afwmm | AA29: aclub | AB29: 2z0 | AC29: afwmm | AD29: aclad | AE29: 36w½ | AF29: 24z½ | AG29: afwmm | AH29: afwmm | AI29: 19z½ | AJ29: 30w0 | AK29: aclub | AL29: 39w1 | AM29: 37z½ | AN29: 38w1 | AO29: 27z1 | AP29: 4z0 | AQ29: 14w1 | AR29: aclub | AS29: 12z½ | AT29: 10w1
A30: 18 | B30: 1733 | O30: 7w½ | P30: 74z1 | Q30: 3z0 | R30: 11w0 | S30: afwmm | T30: 40w1 | U30: 62z1 | V30: 5z0 | W30: 46w½ | X30: aclub | Y30: afwmm | Z30: winst | AA30: aclub | AB30: 27z½ | AC30: 24w1 | AD30: 29z½ | AE30: 14w1 | AF30: 13z0 | AG30: 4w0 | AH30: 47z1 | AI30: 21w1 | AJ30: afwmm | AK30: aclub | AL30: 12w1 | AM30: 11z0 | AN30: 9w1 | AO30: afwmm | AP30: 5w0 | AQ30: 10z0 | AR30: 15z0 | AS30: 26w½ | AT30: 30z1
A31: 19 | B31: 1608 | O31: 46z½ | P31: 21w0 | Q31: 36z0 | R31: 66w1 | S31: 45z1 | T31: aclub | U31: 29w0 | V31: 25z1 | W31: 15w0 | X31: 38z½ | Y31: 56w0 | Z31: afwmm | AA31: 50z1 | AB31: aclub | AC31: afwmm | AD31: 16w0 | AE31: 41z1 | AF31: 28z1 | AG31: 37w1 | AH31: afwmm | AI31: 17w½ | AJ31: 47z1 | AK31: 27w0 | AL31: aclub | AM31: 21z0 | AN31: 36w½ | AO31: 24z½ | AP31: aclub | AQ31: winst | AR31: 20w1 | AS31: aclub | AT31: 14w0
A32: 20 | B32: 1745 | O32: afwmm | P32: afwmm | Q32: afwmm | R32: 39z1 | S32: 71w1 | T32: 2z0 | U32: 37w1 | V32: 10w0 | W32: 5z0 | X32: aclub | Y32: 16w1 | Z32: 21z0 | AA32: aclub | AB32: 31w1 | AC32: 27z½ | AD32: 46w½ | AE32: 30z0 | AF32: 15z½ | AG32: 36w½ | AH32: afwmm | AI32: 56z1 | AJ32: 25w½ | AK32: aclub | AL32: 32z1 | AM32: afwmm | AN32: 29w½ | AO32: aclub | AP32: 8z0 | AQ32: 15w0 | AR32: 19z0 | AS32: 49z1 | AT32: 27w1
A33: 21 | B33: 1804 | O33: 74w½ | P33: 19z1 | Q33: afwmm | R33: 6w0 | S33: 51z1 | T33: 31w1 | U33: 12z½ | V33: afwmm | W33: 29w½ | X33: 5w0 | Y33: 27z½ | Z33: 20w1 | AA33: 9z½ | AB33: 13w½ | AC33: 46z1 | AD33: 32z0 | AE33: 11w0 | AF33: 25z½ | AG33: 30w1 | AH33: afwmm | AI33: 18z0 | AJ33: 31z0 | AK33: afwmm | AL33: 47w1 | AM33: 19w1 | AN33: 15z1 | AO33: 1w½ | AP33: afwmm | AQ33: 12w0 | AR33: 11z0 | AS33: 25w1 | AT33: 22z0
A34: 22 | B34: 1522 | O34: afwzm | P34: 55z1 | Q34: 66z1 | R34: 38w1 | S34: 5w0 | T34: 29z½ | U34: 36w0 | V34: 52z0 | W34: afwmm | X34: afwmm | Y34: 25w1 | Z34: 31w½ | AA34: afwmm | AB34: 33z½ | AC34: 49z0 | AD34: 40w½ | AE34: 15z0 | AF34: afwmm | AG34: 59w1 | AH34: 39z0 | AI34: 44w1 | AJ34: 58z1 | AK34: 38z½ | AL34: 43w1 | AM34: afwmm | AN34: 24w½ | AO34: 37z1 | AP34: 57w1 | AQ34: 30z1 | AR34: afwmm | AS34: 29w0 | AT34: 21w1
A35: 23 | B35: 1657 | O35: 11z0 | P35: 39w1 | Q35: 73z1 | R35: afwmm | S35: 27w½ | T35: 10w½ | U35: 71z1 | V35: 6w0 | W35: 34z½ | X35: aclub | Y35: 24w½ | Z35: 46z½ | AA35: aclub | AB35: afwmm | AC35: afwmm | AD35: 30w½ | AE35: 8z0 | AF35: 36z½ | AG35: 31w½ | AH35: afwmm | AI35: 15z0 | AJ35: 42w1 | AK35: aclub | AL35: 28w1 | AM35: 45z1 | AN35: 25w0 | AO35: aclub | AP35: 14z0 | AQ35: 27z½ | AR35: 49w½ | AS35: afwmm | AT35: 39z1
A36: 24 | B36: 1577 | O36: 73z0 | P36: 70w1 | Q36: 44z1 | R36: 16z½ | S36: 47w½ | T36: aclub | U36: afwmm | V36: 13z0 | W36: 33w1 | X36: 36w1 | Y36: 23z½ | Z36: 34w½ | AA36: 11w0 | AB36: aclub | AC36: 18z0 | AD36: 37z1 | AE36: 46w0 | AF36: 17w½ | AG36: 51z½ | AH36: afwmm | AI36: 31z0 | AJ36: 45w½ | AK36: 53w½ | AL36: aclub | AM36: 28z½ | AN36: 22z½ | AO36: 19w½ | AP36: aclub | AQ36: 36z½ | AR36: afwmm | AS36: aclub | AT36: 49w1
A37: 25 | B37: 1747 | O37: 2z0 | P37: 16w0 | Q37: 70z1 | R37: 29w0 | S37: aclub | T37: 66z1 | U37: 46w½ | V37: 19w0 | W37: 47z½ | X37: aclub | Y37: 22z0 | Z37: 55w1 | AA37: aclub | AB37: 42z1 | AC37: 33w1 | AD37: 36z½ | AE37: 49w1 | AF37: 21w½ | AG37: 45z1 | AH37: 14w½ | AI37: 29z0 | AJ37: 20z½ | AK37: aclub | AL37: 64w1 | AM37: afwmm | AN37: 23z1 | AO37: aclad | AP37: 35w0 | AQ37: 16z0 | AR37: aclub | AS37: 21z0 | AT37: 36w½
A38: 26 | B38: 2004 | O38: gnlid | P38: gnlid | Q38: 34z0 | R38: 15w1 | S38: 43w1 | T38: 11z0 | U38: afwmm | V38: 31z1 | W38: 36w½ | X38: afwmm | Y38: afwmm | Z38: 8w0 | AA38: 16z1 | AB38: 37w1 | AC38: 13z0 | AD38: 56z1 | AE38: 27w1 | AF38: 47w1 | AG38: 10z1 | AH38: 2w0 | AI38: 4z1 | AJ38: 7w1 | AK38: afwmm | AL38: 1z0 | AM38: aclub | AN38: 3w0 | AO38: 5z0 | AP38: 13w0 | AQ38: 9z0 | AR38: 34w½ | AS38: 18z½ | AT38: afwmm
A39: 27 | B39: 1621 | O39: 30z0 | P39: 73w1 | Q39: 41z1 | R39: afwmm | S39: 23z½ | T39: 8w1 | U39: 6w½ | V39: 35z0 | W39: 37z½ | X39: 11w0 | Y39: 21w½ | Z39: 36z½ | AA39: 33z1 | AB39: 18w½ | AC39: 20w½ | AD39: 49z1 | AE39: 26z0 | AF39: 34w1 | AG39: 47z0 | AH39: 57w½ | AI39: 46z1 | AJ39: 14w0 | AK39: 19z1 | AL39: 31w0 | AM39: 30w1 | AN39: 16z½ | AO39: 17w0 | AP39: afwmm | AQ39: 23w½ | AR39: 28z1 | AS39: 9w0 | AT39: 20z0
A40: 28 | B40: 1461 | O40: 69z1 | P40: 67w0 | Q40: 11w½ | R40: 9z0 | S40: afwmm | T40: 41z1 | U40: 47w0 | V40: 46z0 | W40: 50w1 | X40: 31z0 | Y40: 59w1 | Z40: 16z1 | AA40: 42w½ | AB40: 38z0 | AC40: 39w½ | AD40: afwmm | AE40: 43z1 | AF40: 19w0 | AG40: 40z1 | AH40: afwmm | AI40: 49w1 | AJ40: 56z1 | AK40: 15w0 | AL40: 23z0 | AM40: 24w½ | AN40: 76z1 | AO40: afwmm | AP40: 45w1 | AQ40: afwmm | AR40: 27w0 | AS40: 64z1 | AT40: 50z1
A41: 29 | B41: 1702 | O41: 3z0 | P41: 71w0 | Q41: 69z1 | R41: 25z1 | S41: 40w1 | T41: 22w½ | U41: 19z1 | V41: 32w1 | W41: 21z½ | X41: afwmm | Y41: afwmm | Z41: afwmm | AA41: afwmm | AB41: 8w½ | AC41: 14z0 | AD41: 18w½ | AE41: afwmm | AF41: afwmm | AG41: afwmm | AH41: 11z0 | AI41: 25w1 | AJ41: 16w1 | AK41: aclub | AL41: 6z0 | AM41: afwmm | AN41: 20z½ | AO41: 9w1 | AP41: 10w½ | AQ41: afwmm | AR41: afwmm | AS41: 22z1 | AT41: 5w0
A42: 30 | B42: 1763 | O42: 27w1 | P42: 5z0 | Q42: 51w1 | R42: 35w1 | S42: aclub | T42: 6z1 | U42: 1z0 | V42: 3w½ | W42: 14z0 | X42: aclub | Y42: 10z1 | Z42: 12w0 | AA42: aclub | AB42: 47w0 | AC42: 11z0 | AD42: 23z½ | AE42: 20w1 | AF42: 68w0 | AG42: 21z0 | AH42: 31w½ | AI42: 16z0 | AJ42: 17z1 | AK42: aclub | AL42: 37w1 | AM42: 27z0 | AN42: 46z1 | AO42: 32w1 | AP42: 9z0 | AQ42: 22w0 | AR42: afwmm | AS42: 36z½ | AT42: 18w0
A43: 31 | B43: 1661 | O43: 59z1 | P43: 68w½ | Q43: 8w0 | R43: 33z1 | S43: afwmm | T43: 21z0 | U43: afwmm | V43: 26w0 | W43: afwmm | X43: 28w1 | Y43: afwmm | Z43: 22z½ | AA43: 53w1 | AB43: 20z0 | AC43: 36w½ | AD43: afwmm | AE43: 38w1 | AF43: afwmm | AG43: 23z½ | AH43: 30z½ | AI43: 24w1 | AJ43: 21w1 | AK43: afwmm | AL43: 27z1 | AM43: 12w1 | AN43: afwmm | AO43: aclub | AP43: afwmm | AQ43: afwmm | AR43: afwmm | AS43: afwmm | AT43: afwmm
A44: 32 | B44: 1927 | O44: 12z0 | P44: 34w1 | Q44: 56z1 | R44: 47w1 | S44: afwmm | T44: 14z½ | U44: 7w0 | V44: 29z0 | W44: 71w1 | X44: 37z1 | Y44: 11w1 | Z44: afwmm | AA44: 2w½ | AB44: 6z½ | AC44: 10z0 | AD44: 21w1 | AE44: afwmm | AF44: 9z0 | AG44: aclub | AH44: 8z0 | AI44: afwmm | AJ44: aclad | AK44: aclad | AL44: 20w0 | AM44: aclub | AN44: aclub | AO44: 30z0 | AP44: aclad | AQ44: 38w1 | AR44: aclad | AS44: afwmm | AT44: afwmm
A45: 33 | B45: 1227 | O45: 55w1 | P45: 44z½ | Q45: 4z0 | R45: 31w0 | S45: 58z1 | T45: afwmm | U45: afwmm | V45: 51w1 | W45: 24z0 | X45: 15z1 | Y45: afwmm | Z45: aclub | AA45: 27w0 | AB45: 22w½ | AC45: 25z0 | AD45: 42w1 | AE45: 40z½ | AF45: 45w0 | AG45: 62z1 | AH45: 63w0 | AI45: afwmm | AJ45: 39z1 | AK45: 48w½ | AL45: 53z½ | AM45: afwmm | AN45: aclub | AO45: 38z½ | AP45: 40w½ | AQ45: 52w1 | AR45: afwmm | AS45: aclub | AT45: aclub
A46: 34 | B46: 1622 | O46: afwmm | P46: 32z0 | Q46: 26w1 | R46: 46w1 | S46: 16z1 | T46: aclub | U46: 9z0 | V46: afwmm | W46: 23w½ | X46: 49w½ | Y46: aclub | Z46: 24z½ | AA46: 5z½ | AB46: aclub | AC46: aclad | AD46: 13w0 | AE46: afwmm | AF46: 27z0 | AG46: 15w½ | AH46: 45z½ | AI46: aclad | AJ46: afwmm | AK46: aclub | AL46: aclub | AM46: 36w1 | AN46: afwmm | AO46: afwmm | AP46: aclub | AQ46: afwmm | AR46: 26z½ | AS46: aclub | AT46: afwmm
A47: 35 | B47: 1899 | O47: afwmm | P47: afwmm | Q47: 49w1 | R47: 30z0 | S47: aclub | T47: 47z1 | U47: afwmm | V47: 27w1 | W47: 9z1 | X47: aclub | Y47: afwmm | Z47: afwmm | AA47: aclub | AB47: 7w½ | AC47: 1w0 | AD47: afwmm | AE47: 6z0 | AF47: afwmm | AG47: 68w1 | AH47: 3z½ | AI47: afwmm | AJ47: 4w0 | AK47: aclub | AL47: 10z½ | AM47: afwmm | AN47: afwmm | AO47: aclad | AP47: 25z1 | AQ47: afwmm | AR47: aclub | AS47: afwmm | AT47: afwmm
A48: 36 | B48: 1656 | O48: 10w½ | P48: 72z0 | Q48: 19w1 | R48: afwmm | S48: 62z½ | T48: 57w1 | U48: 22z1 | V48: 12w0 | W48: 26z½ | X48: 24z0 | Y48: 37w½ | Z48: 27w½ | AA48: afwmm | AB48: 52z1 | AC48: 31z½ | AD48: 25w½ | AE48: 17z½ | AF48: 23w½ | AG48: 20z½ | AH48: 46w½ | AI48: afwmm | AJ48: afwmm | AK48: afwmm | AL48: afwmm | AM48: 34z0 | AN48: 19z½ | AO48: aclub | AP48: aclub | AQ48: 24w½ | AR48: afwmm | AS48: 30w½ | AT48: 25z½
A49: 37 | B49: 1564 | O49: 41w1 | P49: 52z1 | Q49: 5w½ | R49: 71z½ | S49: 8w1 | T49: 9z0 | U49: 20z0 | V49: aclad | W49: 27w½ | X49: 32w0 | Y49: 36z½ | Z49: aclub | AA49: 46w½ | AB49: 26z0 | AC49: aclad | AD49: 24w0 | AE49: 53z½ | AF49: 40w1 | AG49: 19z0 | AH49: 48w1 | AI49: afwmm | AJ49: 63w1 | AK49: 16z0 | AL49: 30z0 | AM49: 17w½ | AN49: aclub | AO49: 22w0 | AP49: 38z½ | AQ49: aclad | AR49: 42z1 | AS49: afwmm | AT49: aclub
A50: 38 | B50: 1492 | O50: afwmm | P50: bye | Q50: afwmm | R50: 22z0 | S50: 55w1 | T50: 39z1 | U50: 11w0 | V50: 47z0 | W50: 54z1 | X50: 19w½ | Y50: 42w1 | Z50: 13z0 | AA50: afwzm | AB50: 28w1 | AC50: afwmm | AD50: 53w½ | AE50: 31z0 | AF50: 51w0 | AG50: 58z1 | AH50: 43z0 | AI50: 52w½ | AJ50: 50z1 | AK50: 22w½ | AL50: 48w1 | AM50: 49z1 | AN50: 17z0 | AO50: 33w½ | AP50: 37w½ | AQ50: 32z0 | AR50: afwmm | AS50: 41w1 | AT50: 57z0
A51: 39 | B51: 1471 | O51: 60w1 | P51: 23z0 | Q51: afwmm | R51: 20w0 | S51: 44z1 | T51: 38w0 | U51: 40z0 | V51: 50z½ | W51: 42w0 | X51: 48w1 | Y51: 40z1 | Z51: afwmm | AA51: afwmm | AB51: afwmm | AC51: 28z½ | AD51: 43w0 | AE51: 66w1 | AF51: 69z1 | AG51: 53z0 | AH51: 22w1 | AI51: 54z1 | AJ51: 33w0 | AK51: 49w0 | AL51: 17z0 | AM51: 55w1 | AN51: 61z1 | AO51: 42z1 | AP51: 50w1 | AQ51: afwmm | AR51: bye | AS51: afwmm | AT51: 23w0
A52: 40 | B52: 1410 | O52: 54w0 | P52: 58z0 | Q52: 59w1 | R52: 41w1 | S52: 29z0 | T52: 18z0 | U52: 39w1 | V52: 15z½ | W52: 43w1 | X52: 46z0 | Y52: 39w0 | Z52: aclub | AA52: 44z½ | AB52: 48z1 | AC52: 52w½ | AD52: 22z½ | AE52: 33w½ | AF52: 37z0 | AG52: 28w0 | AH52: afwmm | AI52: 50w0 | AJ52: 57w1 | AK52: 41z½ | AL52: 62z1 | AM52: 53w½ | AN52: aclub | AO52: 45w½ | AP52: 33z½ | AQ52: 49w0 | AR52: 64z0 | AS52: 42w½ | AT52: aclub
A53: 41 | B53: 1387 | O53: 37z0 | P53: 69w1 | Q53: 27w0 | R53: 40z0 | S53: 42z1 | T53: 28w0 | U53: 51w0 | V53: 57z½ | W53: 55w0 | X53: 65z1 | Y53: 43z1 | Z53: 53w0 | AA53: 48w0 | AB53: 45z½ | AC53: 58w1 | AD53: 44z½ | AE53: 19w0 | AF53: afwmm | AG53: 66z1 | AH53: 54w0 | AI53: 69z1 | AJ53: 60z1 | AK53: 40w½ | AL53: 56w0 | AM53: 59z1 | AN53: 55z½ | AO53: 64w½ | AP53: 65w1 | AQ53: 50z½ | AR53: 43w½ | AS53: 38z0 | AT53: 66w1
A54: 42 | B54: 1416 | O54: 16z0 | P54: 60w1 | Q54: 47z0 | R54: 48z0 | S54: 41w0 | T54: 69z1 | U54: 15w0 | V54: 58w1 | W54: 39z1 | X54: 43w1 | Y54: 38z0 | Z54: aclub | AA54: 28z½ | AB54: 25w0 | AC54: aclad | AD54: 33z0 | AE54: 45w0 | AF54: 66z1 | AG54: 50w1 | AH54: 56w0 | AI54: bye | AJ54: 23z0 | AK54: 65w1 | AL54: 44z1 | AM54: 62w1 | AN54: aclub | AO54: 39w0 | AP54: 49z½ | AQ54: aclad | AR54: 37w0 | AS54: 40z½ | AT54: aclub
A55: 43 | B55: 1458 | O55: 58w1 | P55: 15z½ | Q55: 10w0 | R55: 14w0 | S55: 26z0 | T55: 45w1 | U55: 52z0 | V55: 62w1 | W55: 40z0 | X55: 42z0 | Y55: 41w0 | Z55: aclub | AA55: 70z1 | AB55: 65z1 | AC55: 55w½ | AD55: 39z1 | AE55: 28w0 | AF55: 60z1 | AG55: 49z0 | AH55: 38w1 | AI55: 48z0 | AJ55: afwmm | AK55: 46w½ | AL55: 22z0 | AM55: 54w½ | AN55: afwmm | AO55: 44w½ | AP55: 55z0 | AQ55: 61w1 | AR55: 41z½ | AS55: bye | AT55: aclub
A56: 44 | B56: 1228 | O56: 75z½ | P56: 33w½ | Q56: 24w0 | R56: 73z0 | S56: 39w0 | T56: 55z½ | U56: 58w1 | V56: aclad | W56: 69z1 | X56: 16z0 | Y56: 50w½ | Z56: aclub | AA56: 40w½ | AB56: 53z0 | AC56: aclad | AD56: 41w½ | AE56: bye | AF56: 59z½ | AG56: 48w0 | AH56: 65w½ | AI56: 22z0 | AJ56: winst | AK56: 66z1 | AL56: 42w0 | AM56: 69w1 | AN56: aclub | AO56: 43z½ | AP56: 64z1 | AQ56: aclad | AR56: 54w0 | AS56: afwmm | AT56: aclub
A57: 45 | B57: 1342 | O57: 63w½ | P57: 51z0 | Q57: 68z0 | R57: 65w1 | S57: 19w0 | T57: 43z0 | U57: 55w1 | V57: afwmm | W57: afwmm | X57: afwmm | Y57: afwmm | Z57: aclub | AA57: 66z½ | AB57: 41w½ | AC57: 48z1 | AD57: 59w1 | AE57: 42z1 | AF57: 33z1 | AG57: 25w0 | AH57: 34w½ | AI57: 64z½ | AJ57: 24z½ | AK57: afwmm | AL57: 49w1 | AM57: 23w0 | AN57: aclub | AO57: 40z½ | AP57: 28z0 | AQ57: afwmm | AR57: afwmm | AS57: afwmm | AT57: afwmm
A58: 46 | B58: 1591 | O58: 19w½ | P58: 10z0 | Q58: 15w1 | R58: 34z0 | S58: afwmm | T58: aclub | U58: 25z½ | V58: 28w1 | W58: 18z½ | X58: 40w1 | Y58: aclub | Z58: 23w½ | AA58: 37z½ | AB58: aclub | AC58: 21w0 | AD58: 20z½ | AE58: 24z1 | AF58: 14w0 | AG58: afwmm | AH58: 36z½ | AI58: 27w0 | AJ58: 15z½ | AK58: 43z½ | AL58: aclub | AM58: afwmm | AN58: 30w0 | AO58: afwmm | AP58: afwmm | AQ58: afwmm | AR58: afwmm | AS58: afwmm | AT58: afwmm
A59: 47 | B59: 1643 | O59: 4w0 | P59: 56z1 | Q59: 42w1 | R59: 32z0 | S59: 24z½ | T59: 35w0 | U59: 28z1 | V59: 38w1 | W59: 25w½ | X59: aclub | Y59: 53z1 | Z59: 15w1 | AA59: aclub | AB59: 30z1 | AC59: afwmm | AD59: 2z0 | AE59: 7w0 | AF59: 26z0 | AG59: 27w1 | AH59: 18w0 | AI59: 14z0 | AJ59: 19w0 | AK59: aclub | AL59: 21z0 | AM59: afwmm | AN59: afwmm | AO59: afwmm | AP59: afwmm | AQ59: afwmm | AR59: afwmm | AS59: afwmm | AT59: afwmm
A60: 48 | B60: 1452 | O60: 67z0 | P60: 50w1 | Q60: 6z0 | R60: 42w1 | S60: 53z0 | T60: afwmm | U60: afwmm | V60: afwmm | W60: 56w0 | X60: 39z0 | Y60: 65w1 | Z60: aclub | AA60: 41z1 | AB60: 40w0 | AC60: 45w0 | AD60: 70z1 | AE60: 69w1 | AF60: 55w1 | AG60: 44z1 | AH60: 37z0 | AI60: 43w1 | AJ60: 64w0 | AK60: 33z½ | AL60: 38z0 | AM60: 57w0 | AN60: aclub | AO60: 49z0 | AP60: 62w½ | AQ60: 54z½ | AR60: 66w1 | AS60: 52w0 | AT60: aclub
A61: 49 | B61: 1476 | O61: afwmm | P61: afwmm | Q61: 35z0 | R61: afwmm | S61: 69w1 | T61: afwmm | U61: afwmm | V61: 73w1 | W61: afwmm | X61: 34z½ | Y61: afwmm | Z61: afwmm | AA61: 8z0 | AB61: afwmm | AC61: 22w1 | AD61: 27w0 | AE61: 25z0 | AF61: 50z1 | AG61: 43w1 | AH61: 16w0 | AI61: 28z0 | AJ61: 66w1 | AK61: 39z1 | AL61: 45z0 | AM61: 38w0 | AN61: 65z1 | AO61: 48w1 | AP61: 42w½ | AQ61: 40z1 | AR61: 23z½ | AS61: 20w0 | AT61: 24z0
A62: 50 | B62: 1325 | O62: 56w0 | P62: 48z0 | Q62: afwmm | R62: 60z1 | S62: afwmm | T62: 52w0 | U62: 66z1 | V62: 39w½ | W62: 28z0 | X62: 54w1 | Y62: 44z½ | Z62: 59z0 | AA62: 19w0 | AB62: 69w1 | AC62: 51z0 | AD62: 58w1 | AE62: 55z1 | AF62: 49w0 | AG62: 42z0 | AH62: 60w1 | AI62: 40z1 | AJ62: 38w0 | AK62: 63z½ | AL62: 57z0 | AM62: 66w1 | AN62: afwmm | AO62: 62w1 | AP62: 39z0 | AQ62: 41w½ | AR62: 61z0 | AS62: 69z1 | AT62: 28w0
A63: 51 | B63: 1582 | O63: afwmm | P63: 45w1 | Q63: 30z0 | R63: afwmm | S63: 21w0 | T63: aclub | U63: 41z1 | V63: 33z0 | W63: afwmm | X63: afwmm | Y63: aclad | Z63: afwmm | AA63: afwmm | AB63: aclub | AC63: 50w1 | AD63: afwzm | AE63: afwmm | AF63: 38z1 | AG63: 24w½ | AH63: afwmm | AI63: aclad | AJ63: afwmm | AK63: afwmm | AL63: aclub | AM63: afwmm | AN63: afwmm | AO63: afwmm | AP63: aclub | AQ63: afwmm | AR63: afwmm | AS63: aclub | AT63: afwmm
A64: 52 | B64: 1730 | O64: 1z0 | P64: 37w0 | Q64: 55z1 | R64: afwmm | S64: afwmm | T64: 50z1 | U64: 43w1 | V64: 22w1 | W64: afwmm | X64: aclub | Y64: 5z0 | Z64: 11z0 | AA64: aclub | AB64: 36w0 | AC64: 40z½ | AD64: aclad | AE64: afwmm | AF64: 62w½ | AG64: afwmm | AH64: 66w1 | AI64: 38z½ | AJ64: 55w1 | AK64: afwmm | AL64: afwmm | AM64: afwmm | AN64: afwmm | AO64: afwmm | AP64: 53w0 | AQ64: 33z0 | AR64: 58w0 | AS64: 48z1 | AT64: 65z1
A65: 53 | B65: 1598 | O65: afwmm | P65: afwmm | Q65: afwmm | R65: afwmm | S65: 48w1 | T65: 12z½ | U65: afwmm | V65: afwmm | W65: afwmm | X65: 7w0 | Y65: 47w0 | Z65: 41z1 | AA65: 31z0 | AB65: 44w1 | AC65: afwmm | AD65: 38z½ | AE65: 37w½ | AF65: 16z0 | AG65: 39w1 | AH65: afwmm | AI65: afwmm | AJ65: afwmm | AK65: 24z½ | AL65: 33w½ | AM65: 40z½ | AN65: 54w1 | AO65: aclub | AP65: 52z1 | AQ65: afwmm | AR65: afwmm | AS65: afwmm | AT65: afwmm
A66: 54 | B66: 1574 | O66: 40z1 | P66: 6w0 | Q66: afwmm | R66: afwmm | S66: 57z½ | T66: aclub | U66: afwmm | V66: 8z0 | W66: 38w0 | X66: 50z0 | Y66: aclub | Z66: afwmm | AA66: afwmm | AB66: aclub | AC66: afwmm | AD66: 65w1 | AE66: afwmm | AF66: afwmm | AG66: 69w1 | AH66: 41z1 | AI66: 39w0 | AJ66: afwmm | AK66: 62w½ | AL66: aclub | AM66: 43z½ | AN66: 53z0 | AO66: 61w½ | AP66: aclub | AQ66: 48w½ | AR66: 44z1 | AS66: aclub | AT66: afwmm
A67: 55 | B67: 1286 | O67: 33z0 | P67: 22w0 | Q67: 52w0 | R67: 59z1 | S67: 38z0 | T67: 44w½ | U67: 45z0 | V67: 60w1 | W67: 41z1 | X67: 57w0 | Y67: 69z1 | Z67: 25z0 | AA67: 65w½ | AB67: 66w½ | AC67: 43z½ | AD67: 15w0 | AE67: 50w0 | AF67: 48z0 | AG67: 70z0 | AH67: 58w1 | AI67: 62w½ | AJ67: 52z0 | AK67: 61z1 | AL67: 59w½ | AM67: 39z0 | AN67: 41w½ | AO67: 65z½ | AP67: 43w1 | AQ67: 69w1 | AR67: 60z½ | AS67: 57z0 | AT67: 64w½
A68: 56 | B68: 1525 | O68: 50z1 | P68: 47w0 | Q68: 32w0 | R68: afwmm | S68: afwmm | T68: 58z1 | U68: 13w0 | V68: aclad | W68: 48z1 | X68: afwmm | Y68: 19z1 | Z68: afwmm | AA68: afwmm | AB68: afwmm | AC68: afwmm | AD68: 26w0 | AE68: afwmm | AF68: afwmm | AG68: afwmm | AH68: 42z1 | AI68: 20w0 | AJ68: 28w0 | AK68: aclub | AL68: 41z1 | AM68: 63z½ | AN68: aclub | AO68: afwmm | AP68: afwmm | AQ68: aclad | AR68: afwmm | AS68: afwmm | AT68: aclub
A69: 57 | B69: 1388 | O69: afwmm | P69: afwmm | Q69: afwmm | R69: afwmm | S69: 54w½ | T69: 36z0 | U69: bye | V69: 41w½ | W69: afwmm | X69: 55z1 | Y69: afwmm | Z69: afwmm | AA69: afwmm | AB69: afwmm | AC69: afwmm | AD69: afwmm | AE69: afwmm | AF69: afwmm | AG69: winst | AH69: 27z½ | AI69: 13w0 | AJ69: 40z0 | AK69: afwmm | AL69: 50w1 | AM69: 48z1 | AN69: afwmm | AO69: 16w0 | AP69: 22z0 | AQ69: 63w0 | AR69: 69z1 | AS69: 55w1 | AT69: 38w1
A70: 58 | B70: 1150 | O70: 43z0 | P70: 40w1 | Q70: 62w½ | R70: 68z0 | S70: 33w0 | T70: 56w0 | U70: 44z0 | V70: 42z0 | W70: 66w1 | X70: afwmm | Y70: afwmm | Z70: afwmm | AA70: 69z1 | AB70: 70w½ | AC70: 41z0 | AD70: 50z0 | AE70: 59w0 | AF70: 65z½ | AG70: 38w0 | AH70: 55z0 | AI70: 61z½ | AJ70: 22w0 | AK70: afwmm | AL70: 63w0 | AM70: 60z1 | AN70: 64z0 | AO70: afwmm | AP70: 69w1 | AQ70: 65w1 | AR70: 52z1 | AS70: 66z1 | AT70: afwmm
A71: 59 | B71: 1232 | O71: 31w0 | P71: afwmm | Q71: 40z0 | R71: 55w0 | S71: afwmm | T71: 65w1 | U71: 69z1 | V71: afwmm | W71: afwmm | X71: afwmm | Y71: 28z0 | Z71: 50w1 | AA71: 60z0 | AB71: afwmm | AC71: 66w1 | AD71: 45z0 | AE71: 58z1 | AF71: 44w½ | AG71: 22z0 | AH71: 61w½ | AI71: afwmm | AJ71: 65z0 | AK71: 69w0 | AL71: 55z½ | AM71: 41w0 | AN71: 62z0 | AO71: 76w1 | AP71: 70w0 | AQ71: 66z0 | AR71: afwmm | AS71: afwmm | AT71: 60w1
A72: 60 | B72: 1156 | O72: 39z0 | P72: 42z0 | Q72: afwmm | R72: 50w0 | S72: 70w½ | T72: bye | U72: 61z½ | V72: 55z0 | W72: afwmm | X72: 69w1 | Y72: 66w1 | Z72: 65z1 | AA72: 59w1 | AB72: afwmm | AC72: afwmm | AD72: afwmm | AE72: 16z0 | AF72: 43w0 | AG72: afwmm | AH72: 50z0 | AI72: 70z1 | AJ72: 41w0 | AK72: afwmm | AL72: afwmm | AM72: 58w0 | AN72: 69z0 | AO72: afwmm | AP72: 66z½ | AQ72: afwmm | AR72: 55w½ | AS72: 65w1 | AT72: 59z0
A73: 61 | B73: 1277 | O73: afwmm | P73: 62z½ | Q73: 9w0 | R73: 74z0 | S73: 15z0 | T73: afwmm | U73: 60w½ | V73: 66w½ | W73: afwmm | X73: afwmm | Y73: afwmm | Z73: afwmm | AA73: afwmm | AB73: afwmm | AC73: afwmm | AD73: 69z1 | AE73: afwmm | AF73: 70w1 | AG73: 65z½ | AH73: 59z½ | AI73: 58w½ | AJ73: afwmm | AK73: 55w0 | AL73: 66z1 | AM73: 64w½ | AN73: 39w0 | AO73: 54z½ | AP73: afwmm | AQ73: 43z0 | AR73: 50w1 | AS73: afwmm | AT73: afwmm
A74: 62 | B74: 1361 | O74: afwmm | P74: 61w½ | Q74: 58z½ | R74: afwmm | S74: 36w½ | T74: afwmm | U74: 18w0 | V74: 43z0 | W74: afwmm | X74: afwmm | Y74: afwmm | Z74: afwmm | AA74: afwmm | AB74: afwmm | AC74: 65w1 | AD74: 66z1 | AE74: afwmm | AF74: 52z½ | AG74: 33w0 | AH74: afwmm | AI74: 55z½ | AJ74: 69w1 | AK74: 54z½ | AL74: 40w0 | AM74: 42z0 | AN74: 59w1 | AO74: 50z0 | AP74: 48z½ | AQ74: 64w0 | AR74: 65z0 | AS74: afwmm | AT74: afwmm
A75: 63 | B75: 1547 | O75: 45z½ | P75: afwmm | Q75: afwmm | R75: afwmm | S75: afwmm | T75: afwmm | U75: afwmm | V75: afwmm | W75: afwmm | X75: afwmm | Y75: afwmm | Z75: afwmm | AA75: afwmm | AB75: afwmm | AC75: afwmm | AD75: afwmm | AE75: afwmm | AF75: afwmm | AG75: afwmm | AH75: 33z1 | AI75: 5w0 | AJ75: 37z0 | AK75: 50w½ | AL75: 58z1 | AM75: 56w½ | AN75: afwmm | AO75: afwmm | AP75: afwmm | AQ75: 57z1 | AR75: afwmm | AS75: afwmm | AT75: 16w½
A76: 64 | B76: 1477 | O76: afwmm | P76: gnlid | Q76: gnlid | R76: gnlid | S76: gnlid | T76: gnlid | U76: gnlid | V76: gnlid | W76: gnlid | X76: gnlid | Y76: gnlid | Z76: gnlid | AA76: gnlid | AB76: gnlid | AC76: gnlid | AD76: gnlid | AE76: gnlid | AF76: gnlid | AG76: gnlid | AH76: gnlid | AI76: 45w½ | AJ76: 48z1 | AK76: 9w0 | AL76: 25z0 | AM76: 61z½ | AN76: 58w1 | AO76: 41z½ | AP76: 44w0 | AQ76: 62z1 | AR76: 40w1 | AS76: 28w0 | AT76: 55z½
A77: 65 | B77: 1212 | O77: afwmm | P77: afwmm | Q77: 13w0 | R77: 45z0 | S77: 66w0 | T77: 59z0 | U77: afwmm | V77: 69w1 | W77: 70z1 | X77: 41w0 | Y77: 48z0 | Z77: 60w0 | AA77: 55z½ | AB77: 43w0 | AC77: 62z0 | AD77: 54z0 | AE77: afwmm | AF77: 58w½ | AG77: 61w½ | AH77: 44z½ | AI77: 66z0 | AJ77: 59w1 | AK77: 42z0 | AL77: 69z0 | AM77: bye | AN77: 49w0 | AO77: 55w½ | AP77: 41z0 | AQ77: 58z0 | AR77: 62w1 | AS77: 60z0 | AT77: 52w0
A78: 66 | B78: 1200 | O78: gnlid | P78: gnlid | Q78: 22w0 | R78: 19z0 | S78: 65z1 | T78: 25w0 | U78: 50w0 | V78: 61z½ | W78: 58z0 | X78: 70w½ | Y78: 60z0 | Z78: 69w1 | AA78: 45w½ | AB78: 55z½ | AC78: 59z0 | AD78: 62w0 | AE78: 39z0 | AF78: 42w0 | AG78: 41w0 | AH78: 52z0 | AI78: 65w1 | AJ78: 49z0 | AK78: 44w0 | AL78: 61w0 | AM78: 50z0 | AN78: winst | AO78: 69z0 | AP78: 60w½ | AQ78: 59w1 | AR78: 48z0 | AS78: 58w0 | AT78: 41z0
A79: 67 | B79: 1580 | O79: 48w1 | P79: 28z1 | Q79: 71w½ | R79: afwmm | S79: afwmm | T79: afwmm | U79: gnlid | V79: gnlid | W79: gnlid | X79: gnlid | Y79: gnlid | Z79: gnlid | AA79: gnlid | AB79: gnlid | AC79: gnlid | AD79: gnlid | AE79: gnlid | AF79: gnlid | AG79: gnlid | AH79: gnlid | AI79: gnlid | AJ79: gnlid | AK79: gnlid | AL79: gnlid | AM79: gnlid | AN79: gnlid | AO79: gnlid | AP79: gnlid | AQ79: gnlid | AR79: gnlid | AS79: gnlid | AT79: gnlid
A80: 68 | B80: 1626 | O80: 14w0 | P80: 31z½ | Q80: 45w1 | R80: 58w1 | S80: afwmm | T80: afwmm | U80: afwmm | V80: afwmm | W80: afwmm | X80: afwmm | Y80: afwmm | Z80: afwmm | AA80: afwmm | AB80: afwzm | AC80: afwmm | AD80: afwmm | AE80: afwmm | AF80: 30z1 | AG80: 35z0 | AH80: afwmm | AI80: afwmm | AJ80: afwmm | AK80: afwmm | AL80: afwmm | AM80: afwmm | AN80: afwmm | AO80: afwmm | AP80: afwmm | AQ80: afwmm | AR80: afwmm | AS80: afwmm | AT80: afwmm
A81: 69 | B81: 1152 | O81: 28w0 | P81: 41z0 | Q81: 29w0 | R81: 70z1 | S81: 49z0 | T81: 42w0 | U81: 59w0 | V81: 65z0 | W81: 44w0 | X81: 60z0 | Y81: 55w0 | Z81: 66z0 | AA81: 58w0 | AB81: 50z0 | AC81: afwmm | AD81: 61w0 | AE81: 48z0 | AF81: 39w0 | AG81: 54z0 | AH81: 70w1 | AI81: 41w0 | AJ81: 62z0 | AK81: 59z1 | AL81: 65w1 | AM81: 44z0 | AN81: 60w1 | AO81: 66w1 | AP81: 58z0 | AQ81: 55z0 | AR81: 57w0 | AS81: 50w0 | AT81: 76z0
A82: 70 | B82: 1327 | O82: 71z0 | P82: 24z0 | Q82: 25w0 | R82: 69w0 | S82: 60z½ | T82: afwmm | U82: afwmm | V82: afwmm | W82: 65w0 | X82: 66z½ | Y82: afwmm | Z82: afwmm | AA82: 43w0 | AB82: 58z½ | AC82: winst | AD82: 48w0 | AE82: afwmm | AF82: 61z0 | AG82: 55w1 | AH82: 69z0 | AI82: 60w0 | AJ82: afwzm | AK82: afwmm | AL82: afwmm | AM82: afwmm | AN82: afwzm | AO82: afwmm | AP82: 59z1 | AQ82: afwmm | AR82: afwmm | AS82: afwmm | AT82: afwmm
A83: 71 | B83: 1541 | O83: 70w1 | P83: 29z1 | Q83: 67z½ | R83: 37w½ | S83: 20z0 | T83: afwmm | U83: 23w0 | V83: 16w½ | W83: 32z0 | X83: afwmm | Y83: afwmm | Z83: afwmm | AA83: afwmm | AB83: afwmm | AC83: afwmm | AD83: afwmm | AE83: afwmm | AF83: afwmm | AG83: afwmm | AH83: afwmm | AI83: afwmm | AJ83: afwmm | AK83: afwmm | AL83: afwmm | AM83: afwmm | AN83: afwmm | AO83: afwmm | AP83: afwmm | AQ83: afwmm | AR83: afwmm | AS83: afwmm | AT83: afwmm
A84: 72 | B84: 1719 | O84: afwmm | P84: 36w1 | Q84: 12z0 | R84: afwmm | S84: 73w1 | T84: afwmm | U84: afwmm | V84: 14w0 | W84: afwmm | X84: aclub | Y84: afwmm | Z84: afwzm | AA84: aclub | AB84: afwmm | AC84: afwmm | AD84: afwmm | AE84: afwmm | AF84: afwmm | AG84: afwmm | AH84: gnlid | AI84: gnlid | AJ84: gnlid | AK84: gnlid | AL84: gnlid | AM84: gnlid | AN84: gnlid | AO84: gnlid | AP84: gnlid | AQ84: gnlid | AR84: gnlid | AS84: gnlid | AT84: gnlid
A85: 73 | B85: 1445 | O85: 24w1 | P85: 27z0 | Q85: 23w0 | R85: 44w1 | S85: 72z0 | T85: 74w1 | U85: 17z0 | V85: 49z0 | W85: gnlid | X85: gnlid | Y85: gnlid | Z85: gnlid | AA85: gnlid | AB85: gnlid | AC85: gnlid | AD85: gnlid | AE85: gnlid | AF85: gnlid | AG85: gnlid | AH85: gnlid | AI85: gnlid | AJ85: gnlid | AK85: gnlid | AL85: gnlid | AM85: gnlid | AN85: gnlid | AO85: gnlid | AP85: gnlid | AQ85: gnlid | AR85: gnlid | AS85: gnlid | AT85: gnlid
A86: 74 | B86: 1655 | O86: 21z½ | P86: 18w0 | Q86: afwmm | R86: 61w1 | S86: afwmm | T86: 73z0 | U86: gnlid | V86: gnlid | W86: gnlid | X86: gnlid | Y86: gnlid | Z86: gnlid | AA86: gnlid | AB86: gnlid | AC86: gnlid | AD86: gnlid | AE86: gnlid | AF86: gnlid | AG86: gnlid | AH86: gnlid | AI86: gnlid | AJ86: gnlid | AK86: gnlid | AL86: gnlid | AM86: gnlid | AN86: gnlid | AO86: gnlid | AP86: gnlid | AQ86: gnlid | AR86: gnlid | AS86: gnlid | AT86: gnlid
A87: 75 | B87: 1500 | O87: 44w½ | P87: gnlid | Q87: gnlid | R87: gnlid | S87: gnlid | T87: gnlid | U87: gnlid | V87: gnlid | W87: gnlid | X87: gnlid | Y87: gnlid | Z87: gnlid | AA87: gnlid | AB87: gnlid | AC87: gnlid | AD87: gnlid | AE87: gnlid | AF87: gnlid | AG87: gnlid | AH87: gnlid | AI87: gnlid | AJ87: gnlid | AK87: gnlid | AL87: gnlid | AM87: gnlid | AN87: gnlid | AO87: gnlid | AP87: gnlid | AQ87: gnlid | AR87: gnlid | AS87: gnlid | AT87: gnlid
A88: 76 | B88: 1518 | O88: afwmm | P88: afwmm | Q88: afwmm | R88: afwmm | S88: afwmm | T88: afwmm | U88: afwmm | V88: afwmm | W88: afwmm | X88: afwmm | Y88: afwmm | Z88: afwmm | AA88: afwmm | AB88: afwmm | AC88: afwmm | AD88: afwmm | AE88: afwmm | AF88: afwmm | AG88: afwmm | AH88: afwmm | AI88: afwmm | AJ88: afwmm | AK88: afwmm | AL88: afwmm | AM88: afwmm | AN88: 28w0 | AO88: 59z0 | AP88: afwmm | AQ88: afwmm | AR88: afwmm | AS88: afwmm | AT88: 69w1

Sheet Expectationfunctions
D2: Range | E2: =E4/E5 -> 708.9747412 | F2: =F4/F5 -> 694.871171 | G2: 800 | H2: 800 | I2: 800 | J2: 800 | K2: 800
D3: Sigma | E3: =E4 -> 282.84 | F3: =F4*SQRT(1/3)*PI() -> 315.0892221 | G3: * | H3: =H4*1 -> 400 | I3: 200 | J3: * | K3: *
D4: xScale | E4: =ROUND(200*SQRT(2),2) -> 282.84 | F4: =400/LN(10) -> 173.7177928 | G4: =G2*G5 -> 254.6479089 | H4: =H2*H5 -> 400 | I4: =I2*I5 -> 200 | J4: =J2*J5 -> 800 | K4: =K2*K5 -> 800
D5: SlopeN | E5: =1/SQRT(2*PI()) -> 0.3989422804 | F5: =F11*(1-F11) -> 0.25 | G5: =1/(PI()*(1+0*0)^2) -> 0.3183098862 | H5: =(1/2)*2/(EXP(0)+EXP(0)) -> 0.5 | I5: 0.25 | J5: 1 | K5: 1
D6: Rating | E6: Gauss (FIDE) | F6: Logistic | G6: Lorenz | H6: SecH | I6: ="AVG"&I2/2 -> AVG400 | J6: Sinh | K6: TanH
D7: -400 | E7: =NORMDIST($D7/E$4,0,1,TRUE) -> 0.07864761308 | F7: =1/(1+EXP(-$D7/F$4)) -> 0.09090909091 | G7: =1/PI()*ATAN(D7/$G$4)+0.5 -> 0.1804535366 | H7: =(2 / PI()) * ATAN(EXP(PI() * 0.5 * D7 / H$4)) -> 0.1304818864 | I7: =($D7/I$2)+0.5 -> 0 | J7: =SINH(D7/$J$4)+0.5 -> -0.02109530549 | K7: =TANH(D7/$K$4)+0.5 -> 0.03788284274
D8: -300 | E8: 0.144419871 | F8: 0.1509795572 | G8: 0.2240304172 | H8: 0.1901301499 | I8: 0.125 | J8: 0.1161489321 | K8: 0.1416426016
D9: -200 | E9: 0.2397479542 | F9: 0.2402530734 | G9: 0.2880776334 | H9: 0.2723338996 | I9: 0.25 | J9: 0.2473876832 | K9: 0.2550813376
D10: -100 | E10: 0.3618355342 | F10: 0.3599350002 | G10: 0.3808894972 | H10: 0.3780941915 | I10: 0.375 | J10: 0.3746742248 | K10: 0.3756469982
D11: 0 | E11: 0.5 | F11: 0.5 | G11: 0.5 | H11: 0.5 | I11: 0.5 | J11: 0.5 | K11: 0.5
D12: 100 | E12: 0.6381644658 | F12: 0.6400649998 | G12: 0.6191105028 | H12: 0.6219058085 | I12: 0.625 | J12: 0.6253257752 | K12: 0.6243530018
D13: 200 | E13: 0.7602520458 | F13: 0.7597469266 | G13: 0.7119223666 | H13: 0.7276661004 | I13: 0.75 | J13: 0.7526123168 | K13: 0.7449186624
D14: 300 | E14: 0.855580129 | F14: 0.8490204428 | G14: 0.7759695828 | H14: 0.8098698501 | I14: 0.875 | J14: 0.8838510679 | K14: 0.8583573984
D15: 400 | E15: 0.9213523869 | F15: 0.9090909091 | G15: 0.8195464634 | H15: 0.8695181136 | I15: 1 | J15: 1.021095305 | K15: 0.9621171573

Sheet 100pc model x
A1: 100% Rating Model
A3: Offset | D3: =200*SQRT(2) -> 282.8427125 | E3: =200*SQRT(2) -> 282.8427125 | F3: =ROUND(NORMINV(0.51,0,D3),0)*100/2 -> 350
A4: n | B4: 100% - 1 draw | C4: 50% + 1 draw | D4: R1 | E4: R2 | F4: Lineair | G4: R100% | H4: R100%L | I4: Navara
A5: 1 | B5: =($A5-0.5)/($A5) -> 0.5 | C5: =0.5+(1/3)/($A5) -> 0.8333333333 | D5: =NORMINV($B5,0,D$3) -> 0 | E5: =NORMINV($C5,0,E$3) -> 273.6281399 | F5: =F$3/$A5 -> 350 | H5: =D5+F5 -> 350
A6: =A5+1 -> 2 | B6: =($A6-0.5)/($A6) -> 0.75 | C6: =0.5+(0.5)/($A6) -> 0.75 | D6: =NORMINV($B6,0,D$3) -> 190.7745105 | E6: 190.7745105 | F6: =$F$3/$A6 -> 175 | G6: =D6+E6 -> 381.549021 | H6: 365.7745105
A7: =A6+1 -> 3 | B7: =($A7-0.5)/($A7) -> 0.8333333333 | C7: =0.5+(0.5)/($A7) -> 0.6666666667 | D7: 273.6281399 | E7: 121.8280777 | F7: 116.6666667 | G7: 395.4562175 | H7: 390.2948065
A8: 4 | B8: 0.875 | C8: =0.5+(0.5)/($A8) -> 0.625 | D8: 325.367939 | E8: 90.124822 | F8: 87.5 | G8: 415.492761 | H8: 412.867939
A9: 5 | B9: 0.9 | C9: =0.5+(0.5)/($A9) -> 0.6 | D9: 362.477521 | E9: 71.65738185 | F9: 70 | G9: 434.1349028 | H9: 432.477521
A10: 6 | B10: 0.9166666667 | C10: 0.5833333333 | D10: 391.1698102 | E10: 59.51813781 | F10: 58.33333333 | G10: 450.6879481 | H10: 449.5031436
A11: 7 | B11: 0.9285714286 | C11: 0.5714285714 | D11: 414.4307003 | E11: 50.91518695 | F11: 50 | G11: 465.3458873 | H11: 464.4307003 | I11: =B28+H11 -> 2905.716415
A12: 8 | B12: 0.9375 | C12: 0.5625 | D12: 433.914816 | E12: 44.49418074 | F12: 43.75 | G12: 478.4089968 | H12: 477.664816
A13: 9 | B13: 0.9444444444 | C13: 0.5555555556 | D13: 450.6303321 | E13: 39.5160399 | F13: 38.88888889 | G13: 490.146372 | H13: 489.5192209
A14: 10 | B14: 0.95 | C14: 0.55 | D14: 465.2348615 | E14: 35.5423962 | F14: 35 | G14: 500.7772577 | H14: 500.2348615
A15: 11 | B15: 0.9545454545 | C15: 0.5454545455 | D15: 478.1800075 | E15: 32.29647837 | F15: 31.81818182 | G15: 510.4764859 | H15: 509.9981893
A16: 12 | B16: 0.9583333333 | C16: 0.5416666667 | D16: 489.7886549 | E16: 29.5948104 | F16: 29.16666667 | G16: 519.3834653 | H16: 518.9553216
A17: 13 | B17: 0.9615384615 | C17: 0.5384615385 | D17: 500.2992718 | E17: 27.31090066 | F17: 26.92307692 | G17: 527.6101724 | H17: 527.2223487
A18: 14 | B18: 0.9642857143 | C18: 0.5357142857 | D18: 509.8927457 | E18: 25.35468573 | F18: 25 | G18: 535.2474314 | H18: 534.8927457
A19: 15 | B19: 0.9666666667 | C19: 0.5333333333 | D19: 518.70939 | E19: 23.66028332 | F19: 23.33333333 | G19: 542.3696734 | H19: 542.0427234
A20: 16 | B20: 0.96875 | C20: 0.53125 | D20: 526.860134 | E20: 22.17837951 | F20: 21.875 | G20: 549.0385135 | H20: 548.735134
A21: 17 | B21: 0.9705882353 | C21: 0.5294117647 | D21: 534.4341224 | E21: 20.87132404 | F21: 20.58823529 | G21: 555.3054465 | H21: 555.0223577
A22: 18 | B22: 0.9722222222 | C22: 0.5277777778 | D22: 541.5040206 | E22: 19.70987188 | F22: 19.44444444 | G22: 561.2138925 | H22: 560.9484651
A23: 19 | B23: 0.9736842105 | C23: 0.5263157895 | D23: 548.1298051 | E23: 18.67096007 | F23: 18.42105263 | G23: 566.8007652 | H23: 566.5508578
A24: 20 | B24: 0.975 | C24: 0.525 | D24: 554.3615297 | E24: 17.73615516 | F24: 17.5 | G24: 572.0976849 | H24: 571.8615297
A26: Bijsturing (Goal Seek)
A27: Navara Chech championship 2013 | C27: =2000/7 -> 285.7142857
B28: =AVERAGE(B29:B37) -> 2441.285714 | C28: 2870.903203 | E28: R(0) | F28: 53.42820765 | G28: =C28+F28 -> 2924.331411 | H28: =C28+F11 -> 2920.903203
B29: 2303 | C29: =NORMDIST(C$28-B29,0,$C$27,1) -> 0.9765754142 | E29: =B29-B$28 -> -138.2857143 | F29: =NORMDIST(F$28-E29,0,$C$27,1) -> 0.7488893297
B30: 2401 | C30: 0.9499801519 | E30: -40.28571429 | F30: 0.6285436873
B31: 2479 | C31: 0.9149155356 | E31: 37.71428571 | F31: 0.5219302609
B32: 2489 | C32: 0.9093333757 | E32: 47.71428571 | F32: 0.5079778059
B33: 2419 | C33: 0.9431365339 | E33: -22.28571429 | F33: 0.6044947787
B34: 2518 | C34: 0.891614744 | E34: 76.71428571 | F34: 0.4675216562
B35: 2480 | C35: 0.91436919 | E35: 38.71428571 | F35: 0.5205359418
C36: =SUM(C29:C35) -> 6.499924945 | F36: =SUM(F29:F35) -> 3.99989346
C37: =ROWS(B29:B35)-0.5 -> 6.5 | D37: =C37-C36 -> 7.50547117e-05 | E37: =ROWS(B29:B35)/2+0.5 -> 4 | F37: =E37-F36 -> 0.0001065395128

Sheet 100pc model
A1: 100% Rating Model
A3: ECF | B3: Pr(n uit n) = Pr(1-2%)
A4: A1 | B4: Pr(n uit n) = Pr(n-0,5 uit n) + 700 / n, CLP
A5: A2 | B5: Pr(n uit n) = (n+1)/n * Pr(n+0,5 uit n+1), Hein Halbertsma
A7: Sigma | B7: =2000/7 -> 285.7142857
A8: Raaklijn (x=0) | B8: =ROUND(NORMINV(0.51,0,1)*B7,0)*100 -> 700
A10: Offset
A11: n | B11: P100 > Pr (n 0,5) / (n) | C11: A1 | D11: A2
A12: 1 | B12: =NORMINV(($A12-0.5)/($A12),0,B$7) -> 0 | C12: =NORMINV(($A12-0.5)/($A12),0,B$7)+700/$A12/2 -> 350 | D12: =(($A12+1)/$A12)*NORMINV(($A12+0.5)/($A12+1),0,B$7) -> 385.4227144
A13: =A12+1 -> 2 | B13: =NORMINV(($A13-0.5)/($A13),0,B$7) -> 192.7113572 | C13: =NORMINV(($A13-0.5)/($A13),0,B$7)+700/$A13/2 -> 367.7113572 | D13: =(($A13+1)/$A13)*NORMINV(($A13+0.5)/($A13+1),0,B$7) -> 414.6092426
A14: =A13+1 -> 3 | B14: =NORMINV(($A14-0.5)/($A14),0,B$7) -> 276.4061617 | C14: =NORMINV(($A14-0.5)/($A14),0,B$7)+700/$A14/2 -> 393.0728284 | D14: =(($A14+1)/$A14)*NORMINV(($A14+0.5)/($A14+1),0,B$7) -> 438.2283354
A15: 4 | B15: =NORMINV(($A15-0.5)/($A15),0,B$7) -> 328.6712515 | C15: =NORMINV(($A15-0.5)/($A15),0,B$7)+700/$A15/2 -> 416.1712515 | D15: =(($A15+1)/$A15)*NORMINV(($A15+0.5)/($A15+1),0,B$7) -> 457.6969877
A16: 5 | B16: =NORMINV(($A16-0.5)/($A16),0,B$7) -> 366.1575902 | C16: =NORMINV(($A16-0.5)/($A16),0,B$7)+700/$A16/2 -> 436.1575902 | D16: =(($A16+1)/$A16)*NORMINV(($A16+0.5)/($A16+1),0,B$7) -> 474.169415
A17: 6 | B17: =NORMINV(($A17-0.5)/($A17),0,B$7) -> 395.1411792 | C17: =NORMINV(($A17-0.5)/($A17),0,B$7)+700/$A17/2 -> 453.4745125 | D17: 488.4112642
A18: 7 | B18: =NORMINV(($A18-0.5)/($A18),0,B$7) -> 418.6382265 | C18: =NORMINV(($A18-0.5)/($A18),0,B$7)+700/$A18/2 -> 468.6382265 | D18: 500.9373206
A19: 8 | B19: =NORMINV(($A19-0.5)/($A19),0,B$7) -> 438.3201555 | C19: =NORMINV(($A19-0.5)/($A19),0,B$7)+700/$A19/2 -> 482.0701555 | D19: 512.1060487
A20: 9 | B20: =NORMINV(($A20-0.5)/($A20),0,B$7) -> 455.2053766 | C20: =NORMINV(($A20-0.5)/($A20),0,B$7)+700/$A20/2 -> 494.0942655 | D20: 522.1757546
A21: 10 | B21: =NORMINV(($A21-0.5)/($A21),0,B$7) -> 469.9581791 | C21: =NORMINV(($A21-0.5)/($A21),0,B$7)+700/$A21/2 -> 504.9581791 | D21: 531.3382264
A22: 11 | B22: =NORMINV(($A22-0.5)/($A22),0,B$7) -> 483.0347513 | C22: =NORMINV(($A22-0.5)/($A22),0,B$7)+700/$A22/2 -> 514.8529331 | D22: 539.739552
A23: 12 | B23: =NORMINV(($A23-0.5)/($A23),0,B$7) -> 494.761256 | C23: =NORMINV(($A23-0.5)/($A23),0,B$7)+700/$A23/2 -> 523.9279227 | D23: 547.4934643
A24: 13 | B24: =NORMINV(($A24-0.5)/($A24),0,B$7) -> 505.3785824 | C24: =NORMINV(($A24-0.5)/($A24),0,B$7)+700/$A24/2 -> 532.3016594 | D24: 554.6901818
A25: 14 | B25: =NORMINV(($A25-0.5)/($A25),0,B$7) -> 515.0694545 | C25: =NORMINV(($A25-0.5)/($A25),0,B$7)+700/$A25/2 -> 540.0694545 | D25: 561.4024395
A26: 15 | B26: =NORMINV(($A26-0.5)/($A26),0,B$7) -> 523.9756102 | C26: =NORMINV(($A26-0.5)/($A26),0,B$7)+700/$A26/2 -> 547.3089436 | D26: 567.689712
A27: 16 | B27: =NORMINV(($A27-0.5)/($A27),0,B$7) -> 532.209105 | C27: =NORMINV(($A27-0.5)/($A27),0,B$7)+700/$A27/2 -> 554.084105 | D27: 573.601238
A28: 17 | B28: =NORMINV(($A28-0.5)/($A28),0,B$7) -> 539.8599887 | C28: =NORMINV(($A28-0.5)/($A28),0,B$7)+700/$A28/2 -> 560.448224 | D28: 579.1782328
A29: 18 | B29: =NORMINV(($A29-0.5)/($A29),0,B$7) -> 547.0016643 | C29: =NORMINV(($A29-0.5)/($A29),0,B$7)+700/$A29/2 -> 566.4461087 | D29: 584.455535
A30: 19 | B30: =NORMINV(($A30-0.5)/($A30),0,B$7) -> 553.6947174 | C30: =NORMINV(($A30-0.5)/($A30),0,B$7)+700/$A30/2 -> 572.11577 | D30: 589.4628525
A31: 20 | B31: =NORMINV(($A31-0.5)/($A31),0,B$7) -> 559.9897099 | C31: =NORMINV(($A31-0.5)/($A31),0,B$7)+700/$A31/2 -> 577.4897099 | D31: 594.225719

Sheet iRp
A1: iRp
A3: Goal Seek on D13, change D4 | D3: =2000/7 -> 285.7142857
A4: Arjen van Leeuwen | C4: =AVERAGE(C5:C11) -> 1370.8 | D4: 1657.500974
A5: HJ v.d. Zee | B5: 1 | C5: 1510 | D5: =NORMDIST(D$4-C5,0,$D$3,1) -> 0.6971612835
A6: P.J. Hoogteijling | B6: 2 | C6: 1138 | D6: =NORMDIST(D$4-C6,0,$D$3,1) -> 0.9654872948
A7: A. Tjon A Ong | B7: 2 | C7: 1332 | D7: =NORMDIST(D$4-C7,0,$D$3,1) -> 0.8727012623
A8: T Sijbrands | B8: 1 | C8: 1630 | D8: =NORMDIST(D$4-C8,0,$D$3,1) -> 0.5383403428
A9: P.J.N Karregat | B9: 2 | C9: 1244 | D9: =NORMDIST(D$4-C9,0,$D$3,1) -> 0.9260870184
B10: =SUM(B5:B9)/2 -> 4 | D10: =SUM(D5:D9) -> 3.999777202
A11: W - We | D11: =B10-D10 -> 0.0002227982739

Sheet Linares 2005
A1: Linares-Group1
A2: Rondedossier t/m Round 14
A3: Pos | B3: Naam | C3: 1 | D3: 2 | E3: 3 | F3: 4 | G3: 5 | H3: 6 | I3: 7 | J3: 8 | K3: 9 | L3: 10 | M3: 11 | N3: 12 | O3: 13 | P3: 14 | Q3: BRtg
A4: 1 | B4: VeselinTopalov | C4: 5w1 | D4: 3z0 | F4: 4w½ | G4: 7z½ | H4: 6w1 | I4: 2z½ | J4: 5z½ | K4: 3w½ | M4: 4z½ | N4: 7w1 | O4: 6z1 | P4: 2w1 | Q4: 2757
A5: 2 | B5: Gary Kasparov | C5: 4z½ | D5: 7w½ | E5: 6z1 | G5: 5w1 | H5: 3z½ | I5: 1w½ | J5: 4w½ | K5: 7z1 | L5: 6w1 | N5: 5z1 | O5: 3w½ | P5: 1z0 | Q5: 2804
A6: 3 | B6: Viswanathan Anand | D6: 1w1 | E6: 4z½ | F6: 7w½ | G6: 6z½ | H6: 2w½ | I6: 5z½ | K6: 1z½ | L6: 4w½ | M6: 7z1 | N6: 6w½ | O6: 2z½ | P6: 5w0 | Q6: 2786
A7: 4 | B7: Peter Leko | C7: 2w½ | D7: 5z½ | E7: 3w½ | F7: 1z½ | H7: 7w½ | I7: 6z½ | J7: 2z½ | K7: 5w½ | L7: 3z½ | M7: 1w½ | O7: 7z½ | P7: 6w½ | Q7: 2749
A8: 5 | B8: Michaels Adams | C8: 1z0 | D8: 4w½ | E8: 7z½ | F8: 6w1 | G8: 2z0 | I8: 3w½ | J8: 1w½ | K8: 4z½ | L8: 7w½ | M8: 6z½ | N8: 2w0 | P8: 3z1 | Q8: 2741
A9: 6 | B9: Fransisco Vallejo Pons | C9: 7z½ | E9: 2w0 | F9: 5z0 | G9: 3w½ | H9: 1z0 | I9: 4w½ | J9: 7w1 | L9: 2z0 | M9: 5w½ | N9: 3z½ | O9: 1w0 | P9: 4z½ | Q9: 2686
A10: 7 | B10: Rustam Kasimdzhanov | C10: 6w½ | D10: 2z½ | E10: 5w½ | F10: 3z½ | G10: 1w½ | H10: 4z½ | J10: 6z0 | K10: 2w0 | L10: 5z½ | M10: 3w0 | N10: 1z0 | O10: 4w½ | Q10: 2678
A12: Linares - Linares - Group 1
A13: Kruistabel na Round 14 - 9-4-2009.
A14: Pos | B14: Naam | C14: BRtg | D14: Score | E14: 1 | F14: 2 | G14: 3 | H14: 4 | I14: 5 | J14: 6 | K14: 7
A15: 1 | B15: Veselin Topalov | C15: 2757 | D15: 8 | E15: × | F15: ½1 | G15: 0½ | H15: ½½ | I15: 1½ | J15: 11 | K15: ½1
A16: 2 | B16: Gary Kasparov | C16: 2804 | D16: 8 | E16: ½0 | F16: × | G16: ½½ | H16: ½½ | I16: 11 | J16: 11 | K16: ½1
A17: 3 | B17: Viswanathan Anand | C17: 2786 | D17: 6.5 | E17: 1½ | F17: ½½ | G17: × | H17: ½½ | I17: ½0 | J17: ½½ | K17: ½1
A18: 4 | B18: Peter Leko | C18: 2749 | D18: 6 | E18: ½½ | F18: ½½ | G18: ½½ | H18: × | I18: ½½ | J18: ½½ | K18: ½½
A19: 5 | B19: Michaels Adams | C19: 2741 | D19: 5.5 | E19: 0½ | F19: 00 | G19: ½1 | H19: ½½ | I19: × | J19: 1½ | K19: ½½
A20: 6 | B20: Fransisco Vallejo Pons | C20: 2686 | D20: 4 | E20: 00 | F20: 00 | G20: ½½ | H20: ½½ | I20: 0½ | J20: × | K20: ½1
A21: 7 | B21: Rustam Kasimdzhanov | C21: 2678 | D21: 4 | E21: ½0 | F21: ½0 | G21: ½0 | H21: ½½ | I21: ½½ | J21: ½0 | K21: ×

Sheet P76R32
A1: Caissa 2011/2012 - Hoorn - Interne Caissa
A2: Rondedossier t/m Ronde 32 - 17-4-2012.
A3: Pos | B3: N | C3: aam | D3: 1 | E3: 2 | F3: 3 | G3: 4 | H3: 5 | I3: 6 | J3: 7 | K3: 8 | L3: 9 | M3: 10 | N3: 11 | O3: 12 | P3: 13 | Q3: 14 | R3: 15 | S3: 16 | T3: 17 | U3: 18 | V3: 19 | W3: 20 | X3: 21 | Y3: 22 | Z3: 23 | AA3: 24 | AB3: 25 | AC3: 26 | AD3: 27 | AE3: 28 | AF3: 29 | AG3: 30 | AH3: 31 | AI3: 32 | AL3: Pos | AM3: Naam | AN3: Prt | AO3: W | AP3: R | AQ3: V | AR3: Ptn | AS3: Score | AT3: VWrde | AU3: S | AV3: R | AW3: Rtg | AX3: TPR | AY3: BRtg
A4: 1 | B4: R | C4: Ritsema | D4: 52w1 | E4: 11z1 | F4: 16w1 | G4: 8z1 | H4: 2w½ | I4: 7z1 | J4: 30w1 | K4: 9w1 | L4: afwmm | M4: 12z0 | N4: afwmm | O4: aclad | P4: afwmm | Q4: 10w1 | R4: 35z1 | S4: 3w1 | T4: 4z1 | U4: 6w1 | V4: 13z1 | W4: afwmm | X4: aclub | Y4: 2z0 | Z4: 5w½ | AA4: 26w1 | AB4: 14z1 | AC4: 11w1 | AD4: 21z½ | AE4: 7w1 | AF4: 3z1 | AG4: aclad | AH4: aclad | AI4: aclad | AL4: 1 | AM4: R Ritsema | AN4: 23 | AO4: 18 | AP4: 3 | AQ4: 2 | AR4: 19.5 | AS4: 2903.8 | AT4: 110 | AU4: 1 | AV4: -1 | AW4: 2070 | AX4: 2188 | AY4: 1984
A5: 2 | B5: P | C5: Holscher | D5: 25w1 | E5: aclad | F5: 14z1 | G5: 4w1 | H5: 1z½ | I5: 20w1 | J5: 3z½ | K5: 7w0 | L5: afwmm | M5: 9z1 | N5: 12w1 | O5: aclad | P5: 32z½ | Q5: 17w1 | R5: 6z½ | S5: 47w1 | T5: 10z1 | U5: aclub | V5: 5w1 | W5: 26z1 | X5: aclub | Y5: 1w1 | Z5: 8w1 | AA5: afwmm | AB5: aclub | AC5: 7z1 | AD5: 11z1 | AE5: 6w0 | AF5: 4z0 | AG5: afwmm | AH5: afwmm | AI5: afwmm | AL5: 2 | AM5: P Holscher | AN5: 22 | AO5: 15 | AP5: 4 | AQ5: 3 | AR5: 17 | AS5: 2661 | AT5: 110 | AU5: 0 | AV5: -1 | AW5: 2115 | AX5: 2068 | AY5: 2142
A6: 3 | B6: T | C6: Wessels | D6: 29w1 | E6: 14z½ | F6: 18w1 | G6: 10z1 | H6: aclub | I6: afwmm | J6: 2w½ | K6: 30z½ | L6: 7z0 | M6: aclub | N6: 4w1 | O6: 5w1 | P6: aclub | Q6: afwmm | R6: afwmm | S6: 1z0 | T6: 12z1 | U6: aclub | V6: 6w0 | W6: 35w½ | X6: afwmm | Y6: 8z1 | Z6: aclub | AA6: 11w1 | AB6: aclub | AC6: 26z1 | AD6: aclad | AE6: afwmm | AF6: 1w0 | AG6: aclub | AH6: 5z½ | AI6: 4z1 | AL6: 3 | AM6: T Wessels | AN6: 19 | AO6: 10 | AP6: 5 | AQ6: 4 | AR6: 12.5 | AS6: 2370.4 | AT6: 109 | AU6: -1 | AV6: -2 | AW6: 1960 | AX6: 1987 | AY6: 1938
A7: 4 | B7: T | C7: van Dijk | D7: 47z1 | E7: aclad | F7: 33w1 | G7: 2z0 | H7: aclub | I7: 5z1 | J7: afwmm | K7: afwmm | L7: 10w½ | M7: aclub | N7: 3z0 | O7: 9w1 | P7: aclub | Q7: 12w½ | R7: 7z0 | S7: 11w1 | T7: 1w0 | U7: afwmm | V7: 18z1 | W7: 6z1 | X7: 26w0 | Y7: 35z1 | Z7: aclub | AA7: 5w1 | AB7: 13z½ | AC7: 10z1 | AD7: aclad | AE7: 17w1 | AF7: 2w1 | AG7: aclub | AH7: 8z0 | AI7: 3w0 | AL7: 4 | AM7: T van Dijk | AN7: 22 | AO7: 12 | AP7: 3 | AQ7: 7 | AR7: 13.5 | AS7: 2189.1 | AT7: 109 | AU7: 0 | AV7: 1 | AW7: 1870 | AX7: 1944 | AY7: 1791
A8: 5 | B8: S | C8: Kelder | D8: 13z1 | E8: 30w1 | F8: 37z½ | G8: 7w0 | H8: 22z1 | I8: 4w0 | J8: 10z0 | K8: 18w1 | L8: 20w1 | M8: 21z1 | N8: 52w1 | O8: 3z0 | P8: 34w½ | Q8: 11z1 | R8: 12z0 | S8: 8w½ | T8: 9w1 | U8: aclub | V8: 2z0 | W8: afwmm | X8: 63z1 | Y8: 6w½ | Z8: 1z½ | AA8: 4z0 | AB8: aclub | AC8: 14w1 | AD8: 26w1 | AE8: 18z1 | AF8: 7z1 | AG8: 12w½ | AH8: 3w½ | AI8: 29z1 | AL8: 5 | AM8: S Kelder | AN8: 29 | AO8: 15 | AP8: 7 | AQ8: 7 | AR8: 18.5 | AS8: 2154.3 | AT8: 107 | AU8: -1 | AV8: -1 | AW8: 1918 | AX8: 1897 | AY8: 1953
A9: 6 | B9: A | C9: Romkes | D9: 8w0 | E9: 54z1 | F9: 48w1 | G9: 21z1 | H9: 12w1 | I9: 30w0 | J9: 27z½ | K9: 23z1 | L9: 13w1 | M9: aclub | N9: afwmm | O9: 7z0 | P9: aclub | Q9: 32w½ | R9: 2w½ | S9: 9z½ | T9: 35w1 | U9: 1z0 | V9: 3z1 | W9: 4w0 | X9: 12z½ | Y9: 5z½ | Z9: aclub | AA9: 29w1 | AB9: afwmm | AC9: 13z1 | AD9: aclub | AE9: 2z1 | AF9: 11w1 | AG9: 7w½ | AH9: 10z0 | AI9: 8z½ | AL9: 6 | AM9: A Romkes | AN9: 26 | AO9: 12 | AP9: 8 | AQ9: 6 | AR9: 16 | AS9: 2141.7 | AT9: 108 | AU9: -2 | AV9: -2 | AW9: 1815 | AX9: 1912 | AY9: 1666
A10: 7 | B10: E | C10: van Tooren | D10: 18z½ | E10: 9w1 | F10: 17w1 | G10: 5z1 | H10: afwmm | I10: 1w0 | J10: 32z1 | K10: 2z1 | L10: 3w1 | M10: 53z1 | N10: 14w1 | O10: 6w1 | P10: 12z½ | Q10: 35z½ | R10: 4w1 | S10: 10w0 | T10: 47z1 | U10: aclub | V10: 11w1 | W10: afwmm | X10: 9z1 | Y10: 26z0 | Z10: afwmm | AA10: 13w½ | AB10: afwmm | AC10: 2w0 | AD10: 10z0 | AE10: 1z0 | AF10: 5w0 | AG10: 6z½ | AH10: afwmm | AI10: 12w1 | AL10: 7 | AM10: E van Tooren | AN10: 26 | AO10: 14 | AP10: 5 | AQ10: 7 | AR10: 16.5 | AS10: 2140.7 | AT10: 107 | AU10: 0 | AV10: 1 | AW10: 1970 | AX10: 1936 | AY10: 2013
A11: 8 | B11: F | C11: Avis | D11: 6z1 | E11: 12w½ | F11: 31z1 | G11: 1w0 | H11: 37z0 | I11: 27z0 | J11: afwmm | K11: 54w1 | L11: 16w1 | M11: afwmm | N11: afwmm | O11: 26z1 | P11: 49w1 | Q11: 29z½ | R11: 9w0 | S11: 5z½ | T11: 23w1 | U11: 11z0 | V11: 14z1 | W11: 32w1 | X11: aclub | Y11: 3w0 | Z11: 2z0 | AA11: afwmm | AB11: 10w½ | AC11: 12z½ | AD11: afwmm | AE11: 20w1 | AF11: 13w1 | AG11: 16z1 | AH11: 4w1 | AI11: 6w½ | AL11: 8 | AM11: F Avis | AN11: 26 | AO11: 13 | AP11: 6 | AQ11: 7 | AR11: 16 | AS11: 2020.8 | AT11: 106 | AU11: 2 | AV11: 2 | AW11: 1845 | AX11: 1838 | AY11: 1855
A12: 9 | B12: J | C12: de Vries | D12: bye | E12: 7z0 | F12: 61z1 | G12: 28w1 | H12: 11z1 | I12: 37w1 | J12: 34w1 | K12: 1z0 | L12: 35w0 | M12: 2w0 | N12: 13z1 | O12: 4z0 | P12: 21w½ | Q12: winst | R12: 8z1 | S12: 6w½ | T12: 5z0 | U12: 32w1 | V12: 12w1 | W12: 10z½ | X12: 7w0 | Y12: 11w0 | Z12: 64z1 | AA12: 14z0 | AB12: 16w1 | AC12: 18z0 | AD12: 29z0 | AE12: 30w1 | AF12: 26w1 | AG12: afwmm | AH12: 27z1 | AI12: 15w1 | AL12: 9 | AM12: J de Vries | AN12: 30 | AO12: 16 | AP12: 3 | AQ12: 11 | AR12: 17.5 | AS12: 1913.2 | AT12: 103 | AU12: 1 | AV12: 1 | AW12: 1782 | AX12: 1826 | AY12: 1695
A13: 10 | B13: B | C13: Spil | D13: 36z½ | E13: 46w1 | F13: 43z1 | G13: 3w0 | H13: aclub | I13: 23z½ | J13: 5w1 | K13: 20z1 | L13: 4z½ | M13: aclub | N13: 30w0 | O13: 14w1 | P13: aclub | Q13: 1z0 | R13: 32w1 | S13: 7z1 | T13: 2w0 | U13: 12z½ | V13: 26w0 | W13: 9w½ | X13: 11z½ | Y13: 13z0 | Z13: aclub | AA13: 35w½ | AB13: 8z½ | AC13: 4w0 | AD13: 7w1 | AE13: 29z½ | AF13: 18w1 | AG13: aclub | AH13: 6w1 | AI13: 17z0 | AL13: 10 | AM13: B Spil | AN13: 27 | AO13: 10 | AP13: 9 | AQ13: 8 | AR13: 14.5 | AS13: 1900.7 | AT13: 105 | AU13: 1 | AV13: -1 | AW13: 1828 | AX13: 1835 | AY13: 1815
A14: 11 | B14: M | C14: Ploeger | D14: 23w1 | E14: 1w0 | F14: 28z½ | G14: 18z1 | H14: 9w0 | I14: 26w1 | J14: 38z1 | K14: afwmm | L14: 12w0 | M14: 27z1 | N14: 32z0 | O14: 52w1 | P14: 24z1 | Q14: 5w0 | R14: 30w1 | S14: 4z0 | T14: 21z1 | U14: 8w1 | V14: 7z0 | W14: 29w1 | X14: 10w½ | Y14: 9z1 | Z14: afwmm | AA14: 3z0 | AB14: 18w1 | AC14: 1z0 | AD14: 2w0 | AE14: 12z1 | AF14: 6z0 | AG14: 21w1 | AH14: 14z½ | AI14: 13z1 | AL14: 11 | AM14: M Ploeger | AN14: 30 | AO14: 16 | AP14: 3 | AQ14: 11 | AR14: 17.5 | AS14: 1881.4 | AT14: 102 | AU14: -2 | AV14: -2 | AW14: 1843 | AX14: 1846 | AY14: 1836
A15: 12 | B15: E | C15: Romkes | D15: 32w1 | E15: 8z½ | F15: 72w1 | G15: afwmm | H15: 6z0 | I15: 53w½ | J15: 21w½ | K15: 36z1 | L15: 11z1 | M15: 1w1 | N15: 2z0 | O15: 30z1 | P15: 7w½ | Q15: 4z½ | R15: 5w1 | S15: 14z1 | T15: 3w0 | U15: 10w½ | V15: 9z0 | W15: 13w1 | X15: 6w½ | Y15: afwmm | Z15: aclub | AA15: 18z0 | AB15: 31z0 | AC15: 8w½ | AD15: aclub | AE15: 11w0 | AF15: 21z1 | AG15: 5z½ | AH15: 17w½ | AI15: 7z0 | AL15: 12 | AM15: E Romkes | AN15: 28 | AO15: 10 | AP15: 10 | AQ15: 8 | AR15: 15 | AS15: 1831.9 | AT15: 104 | AU15: 0 | AV15: -1 | AW15: 1793 | AX15: 1845 | AY15: 1675
A16: 13 | B16: F | C16: Kragten | D16: 5w0 | E16: afwmm | F16: 65z1 | G16: afwmm | H16: aclad | I16: afwmm | J16: 56z1 | K16: 24w1 | L16: 6z0 | M16: aclub | N16: 9w0 | O16: 38w1 | P16: aclub | Q16: 21z½ | R16: 26w1 | S16: 34z1 | T16: afwmm | U16: 18w1 | V16: 1w0 | W16: 12z0 | X16: 57z1 | Y16: 10w1 | Z16: afwmm | AA16: 7z½ | AB16: 4w½ | AC16: 6w0 | AD16: aclub | AE16: 26z1 | AF16: 8z0 | AG16: aclub | AH16: aclad | AI16: 11w0 | AL16: 13 | AM16: F Kragten | AN16: 21 | AO16: 10 | AP16: 3 | AQ16: 8 | AR16: 11.5 | AS16: 1773.6 | AT16: 102 | AU16: 1 | AV16: 1 | AW16: 1739 | AX16: 1780 | AY16: 1704
A17: 14 | B17: G | C17: Roos | D17: 68z1 | E17: 3w½ | F17: 2w0 | G17: 43z1 | H17: aclub | I17: 32w½ | J17: afwmm | K17: 72z1 | L17: 30w1 | M17: aclub | N17: 7z0 | O17: 10z0 | P17: aclub | Q17: afwmm | R17: 29w1 | S17: 12w0 | T17: 18z0 | U17: 46z1 | V17: 8w0 | W17: 25z½ | X17: 47w1 | Y17: 27z1 | Z17: afwmm | AA17: 9w1 | AB17: 1w0 | AC17: 5z0 | AD17: aclad | AE17: 23w1 | AF17: 17z0 | AG17: aclub | AH17: 11w½ | AI17: 19z1 | AL17: 14 | AM17: G Roos | AN17: 24 | AO17: 11 | AP17: 4 | AQ17: 9 | AR17: 13 | AS17: 1765.9 | AT17: 99 | AU17: 0 | AV17: -1 | AW17: 1792 | AX17: 1801 | AY17: 1779
A18: 15 | B18: G | C18: Groot | D18: 17z0 | E18: 43w½ | F18: 46z0 | G18: 26z0 | H18: 61w1 | I18: aclub | J18: 42z1 | K18: 40w½ | L18: 19z1 | M18: 33w0 | N18: aclad | O18: 47z0 | P18: afwmm | Q18: aclub | R18: 16w½ | S18: 55z1 | T18: 22w1 | U18: 20w½ | V18: 34z½ | W18: afwmm | X18: 23w1 | Y18: 46w½ | Z18: 28z1 | AA18: aclub | AB18: afwmm | AC18: 21w0 | AD18: afwmm | AE18: aclub | AF18: 20z1 | AG18: 18w1 | AH18: aclub | AI18: 9z0 | AL18: 15 | AM18: G Groot | AN18: 22 | AO18: 9 | AP18: 6 | AQ18: 7 | AR18: 12 | AS18: 1738.6 | AT18: 101 | AU18: 0 | AV18: -1 | AW18: 1630 | AX18: 1626 | AY18: 1634
A19: 16 | B19: W | C19: Druijf | D19: 42w1 | E19: 25z1 | F19: 1z0 | G19: 24w½ | H19: 34w0 | I19: aclub | J19: afwmm | K19: 71z½ | L19: 8z0 | M19: 44w1 | N19: 20z0 | O19: 28w0 | P19: 26w0 | Q19: aclub | R19: 15z½ | S19: 19z1 | T19: 60w1 | U19: 53w1 | V19: afwmm | W19: 49z1 | X19: 30w1 | Y19: 29z0 | Z19: 37w1 | AA19: aclub | AB19: 9z0 | AC19: 27w½ | AD19: 57z1 | AE19: aclub | AF19: 25w1 | AG19: 8w0 | AH19: aclub | AI19: 63z½ | AL19: 16 | AM19: W Druijf | AN19: 25 | AO19: 11 | AP19: 5 | AQ19: 9 | AR19: 13.5 | AS19: 1731.5 | AT19: 100 | AU19: 1 | AV19: -1 | AW19: 1623 | AX19: 1660 | AY19: 1575
A20: 17 | B20: J | C20: P Hendriks | D20: 15w1 | E20: aclad | F20: 7z0 | G20: afwmm | H20: aclub | I20: afwmm | J20: 73w1 | K20: afwmm | L20: afwmm | M20: aclub | N20: afwmm | O20: afwmm | P20: aclub | Q20: 2z0 | R20: afwmm | S20: aclad | T20: 36w½ | U20: 24z½ | V20: afwmm | W20: afwmm | X20: 19z½ | Y20: 30w0 | Z20: aclub | AA20: 39w1 | AB20: 37z½ | AC20: 38w1 | AD20: 27z1 | AE20: 4z0 | AF20: 14w1 | AG20: aclub | AH20: 12z½ | AI20: 10w1 | AL20: 17 | AM20: J P Hendriks | AN20: 16 | AO20: 7 | AP20: 5 | AQ20: 4 | AR20: 9.5 | AS20: 1727.4 | AT20: 103 | AU20: 0 | AV20: 1 | AW20: 1780 | AX20: 1761 | AY20: 1790
A21: 18 | B21: B | C21: van den Berg | D21: 7w½ | E21: 74z1 | F21: 3z0 | G21: 11w0 | H21: afwmm | I21: 40w1 | J21: 62z1 | K21: 5z0 | L21: 46w½ | M21: aclub | N21: afwmm | O21: winst | P21: aclub | Q21: 27z½ | R21: 24w1 | S21: 29z½ | T21: 14w1 | U21: 13z0 | V21: 4w0 | W21: 47z1 | X21: 21w1 | Y21: afwmm | Z21: aclub | AA21: 12w1 | AB21: 11z0 | AC21: 9w1 | AD21: afwmm | AE21: 5w0 | AF21: 10z0 | AG21: 15z0 | AH21: 26w½ | AI21: 30z1 | AL21: 18 | AM21: B van den Berg | AN21: 25 | AO21: 11 | AP21: 5 | AQ21: 9 | AR21: 13.5 | AS21: 1695.5 | AT21: 96 | AU21: 0 | AV21: -1 | AW21: 1748 | AX21: 1759 | AY21: 1733
A22: 19 | B22: R | C22: Ridderikhoff | D22: 46z½ | E22: 21w0 | F22: 36z0 | G22: 66w1 | H22: 45z1 | I22: aclub | J22: 29w0 | K22: 25z1 | L22: 15w0 | M22: 38z½ | N22: 56w0 | O22: afwmm | P22: 50z1 | Q22: aclub | R22: afwmm | S22: 16w0 | T22: 41z1 | U22: 28z1 | V22: 37w1 | W22: afwmm | X22: 17w½ | Y22: 47z1 | Z22: 27w0 | AA22: aclub | AB22: 21z0 | AC22: 36w½ | AD22: 24z½ | AE22: aclub | AF22: winst | AG22: 20w1 | AH22: aclub | AI22: 14w0 | AL22: 19 | AM22: R Ridderikhoff | AN22: 24 | AO22: 10 | AP22: 5 | AQ22: 9 | AR22: 12.5 | AS22: 1633.2 | AT22: 98 | AU22: 1 | AV22: 2 | AW22: 1602 | AX22: 1598 | AY22: 1608
A23: 20 | B23: A | C23: Laan | D23: afwmm | E23: afwmm | F23: afwmm | G23: 39z1 | H23: 71w1 | I23: 2z0 | J23: 37w1 | K23: 10w0 | L23: 5z0 | M23: aclub | N23: 16w1 | O23: 21z0 | P23: aclub | Q23: 31w1 | R23: 27z½ | S23: 46w½ | T23: 30z0 | U23: 15z½ | V23: 36w½ | W23: afwmm | X23: 56z1 | Y23: 25w½ | Z23: aclub | AA23: 32z1 | AB23: afwmm | AC23: 29w½ | AD23: aclub | AE23: 8z0 | AF23: 15w0 | AG23: 19z0 | AH23: 49z1 | AI23: 27w1 | AL23: 20 | AM23: A Laan | AN23: 23 | AO23: 9 | AP23: 6 | AQ23: 8 | AR23: 12 | AS23: 1628.2 | AT23: 93 | AU23: -1 | AV23: 1 | AW23: 1720 | AX23: 1700 | AY23: 1745
A24: 21 | B24: D | C24: Lont | D24: 74w½ | E24: 19z1 | F24: afwmm | G24: 6w0 | H24: 51z1 | I24: 31w1 | J24: 12z½ | K24: afwmm | L24: 29w½ | M24: 5w0 | N24: 27z½ | O24: 20w1 | P24: 9z½ | Q24: 13w½ | R24: 46z1 | S24: 32z0 | T24: 11w0 | U24: 25z½ | V24: 30w1 | W24: afwmm | X24: 18z0 | Y24: 31z0 | Z24: afwmm | AA24: 47w1 | AB24: 19w1 | AC24: 15z1 | AD24: 1w½ | AE24: afwmm | AF24: 12w0 | AG24: 11z0 | AH24: 25w1 | AI24: 22z0 | AL24: 21 | AM24: D Lont | AN24: 27 | AO24: 10 | AP24: 8 | AQ24: 9 | AR24: 14 | AS24: 1624.2 | AT24: 97 | AU24: 1 | AV24: -1 | AW24: 1747 | AX24: 1721 | AY24: 1804
A25: 22 | B25: S | C25: van de Krol | D25: afwzm | E25: 55z1 | F25: 66z1 | G25: 38w1 | H25: 5w0 | I25: 29z½ | J25: 36w0 | K25: 52z0 | L25: afwmm | M25: afwmm | N25: 25w1 | O25: 31w½ | P25: afwmm | Q25: 33z½ | R25: 49z0 | S25: 40w½ | T25: 15z0 | U25: afwmm | V25: 59w1 | W25: 39z0 | X25: 44w1 | Y25: 58z1 | Z25: 38z½ | AA25: 43w1 | AB25: afwmm | AC25: 24w½ | AD25: 37z1 | AE25: 57w1 | AF25: 30z1 | AG25: afwmm | AH25: 29w0 | AI25: 21w1 | AL25: 22 | AM25: S van de Krol | AN25: 25 | AO25: 12 | AP25: 6 | AQ25: 7 | AR25: 15 | AS25: 1599.8 | AT25: 95 | AU25: 1 | AV25: 2 | AW25: 1572 | AX25: 1616 | AY25: 1522
A26: 23 | B26: N | C26: van der Mark | D26: 11z0 | E26: 39w1 | F26: 73z1 | G26: afwmm | H26: 27w½ | I26: 10w½ | J26: 71z1 | K26: 6w0 | L26: 34z½ | M26: aclub | N26: 24w½ | O26: 46z½ | P26: aclub | Q26: afwmm | R26: afwmm | S26: 30w½ | T26: 8z0 | U26: 36z½ | V26: 31w½ | W26: afwmm | X26: 15z0 | Y26: 42w1 | Z26: aclub | AA26: 28w1 | AB26: 45z1 | AC26: 25w0 | AD26: aclub | AE26: 14z0 | AF26: 27z½ | AG26: 49w½ | AH26: afwmm | AI26: 39z1 | AL26: 23 | AM26: N van der Mark | AN26: 23 | AO26: 7 | AP26: 10 | AQ26: 6 | AR26: 12 | AS26: 1573.7 | AT26: 91 | AU26: -1 | AV26: -1 | AW26: 1641 | AX26: 1629 | AY26: 1657
A27: 24 | B27: H | C27: Sijm | D27: 73z0 | E27: 70w1 | F27: 44z1 | G27: 16z½ | H27: 47w½ | I27: aclub | J27: afwmm | K27: 13z0 | L27: 33w1 | M27: 36w1 | N27: 23z½ | O27: 34w½ | P27: 11w0 | Q27: aclub | R27: 18z0 | S27: 37z1 | T27: 46w0 | U27: 17w½ | V27: 51z½ | W27: afwmm | X27: 31z0 | Y27: 45w½ | Z27: 53w½ | AA27: aclub | AB27: 28z½ | AC27: 22z½ | AD27: 19w½ | AE27: aclub | AF27: 36z½ | AG27: afwmm | AH27: aclub | AI27: 49w1 | AL27: 24 | AM27: H Sijm | AN27: 24 | AO27: 6 | AP27: 12 | AQ27: 6 | AR27: 12 | AS27: 1563.8 | AT27: 91 | AU27: 0 | AV27: 1 | AW27: 1572 | AX27: 1568 | AY27: 1577
A28: 25 | B28: A | C28: Stapel | D28: 2z0 | E28: 16w0 | F28: 70z1 | G28: 29w0 | H28: aclub | I28: 66z1 | J28: 46w½ | K28: 19w0 | L28: 47z½ | M28: aclub | N28: 22z0 | O28: 55w1 | P28: aclub | Q28: 42z1 | R28: 33w1 | S28: 36z½ | T28: 49w1 | U28: 21w½ | V28: 45z1 | W28: 14w½ | X28: 29z0 | Y28: 20z½ | Z28: aclub | AA28: 64w1 | AB28: afwmm | AC28: 23z1 | AD28: aclad | AE28: 35w0 | AF28: 16z0 | AG28: aclub | AH28: 21z0 | AI28: 36w½ | AL28: 25 | AM28: A Stapel | AN28: 25 | AO28: 9 | AP28: 7 | AQ28: 9 | AR28: 12.5 | AS28: 1554.9 | AT28: 94 | AU28: -1 | AV28: 1 | AW28: 1663 | AX28: 1592 | AY28: 1747
A29: 26 | B29: H | C29: Bonte | D29: gnlid | E29: gnlid | F29: 34z0 | G29: 15w1 | H29: 43w1 | I29: 11z0 | J29: afwmm | K29: 31z1 | L29: 36w½ | M29: afwmm | N29: afwmm | O29: 8w0 | P29: 16z1 | Q29: 37w1 | R29: 13z0 | S29: 56z1 | T29: 27w1 | U29: 47w1 | V29: 10z1 | W29: 2w0 | X29: 4z1 | Y29: 7w1 | Z29: afwmm | AA29: 1z0 | AB29: aclub | AC29: 3w0 | AD29: 5z0 | AE29: 13w0 | AF29: 9z0 | AG29: 34w½ | AH29: 18z½ | AI29: afwmm | AL29: 26 | AM29: H Bonte | AN29: 24 | AO29: 11 | AP29: 3 | AQ29: 10 | AR29: 12.5 | AS29: 1548.9 | AT29: 97 | AU29: 0 | AV29: -1 | AW29: 1878 | AX29: 1750 | AY29: 2004
A30: 27 | B30: B | C30: Zuurveld | D30: 30z0 | E30: 73w1 | F30: 41z1 | G30: afwmm | H30: 23z½ | I30: 8w1 | J30: 6w½ | K30: 35z0 | L30: 37z½ | M30: 11w0 | N30: 21w½ | O30: 36z½ | P30: 33z1 | Q30: 18w½ | R30: 20w½ | S30: 49z1 | T30: 26z0 | U30: 34w1 | V30: 47z0 | W30: 57w½ | X30: 46z1 | Y30: 14w0 | Z30: 19z1 | AA30: 31w0 | AB30: 30w1 | AC30: 16z½ | AD30: 17w0 | AE30: afwmm | AF30: 23w½ | AG30: 28z1 | AH30: 9w0 | AI30: 20z0 | AL30: 27 | AM30: B Zuurveld | AN30: 30 | AO30: 10 | AP30: 10 | AQ30: 10 | AR30: 15 | AS30: 1538.5 | AT30: 95 | AU30: 0 | AV30: -1 | AW30: 1650 | AX30: 1661 | AY30: 1621
A31: 28 | B31: J | C31: Kuin | D31: 69z1 | E31: 67w0 | F31: 11w½ | G31: 9z0 | H31: afwmm | I31: 41z1 | J31: 47w0 | K31: 46z0 | L31: 50w1 | M31: 31z0 | N31: 59w1 | O31: 16z1 | P31: 42w½ | Q31: 38z0 | R31: 39w½ | S31: afwmm | T31: 43z1 | U31: 19w0 | V31: 40z1 | W31: afwmm | X31: 49w1 | Y31: 56z1 | Z31: 15w0 | AA31: 23z0 | AB31: 24w½ | AC31: 76z1 | AD31: afwmm | AE31: 45w1 | AF31: afwmm | AG31: 27w0 | AH31: 64z1 | AI31: 50z1 | AL31: 28 | AM31: J Kuin | AN31: 27 | AO31: 13 | AP31: 4 | AQ31: 10 | AR31: 15 | AS31: 1536 | AT31: 90 | AU31: -1 | AV31: -2 | AW31: 1523 | AX31: 1554 | AY31: 1461
A32: 29 | B32: A | C32: van der Wolff | D32: 3z0 | E32: 71w0 | F32: 69z1 | G32: 25z1 | H32: 40w1 | I32: 22w½ | J32: 19z1 | K32: 32w1 | L32: 21z½ | M32: afwmm | N32: afwmm | O32: afwmm | P32: afwmm | Q32: 8w½ | R32: 14z0 | S32: 18w½ | T32: afwmm | U32: afwmm | V32: afwmm | W32: 11z0 | X32: 25w1 | Y32: 16w1 | Z32: aclub | AA32: 6z0 | AB32: afwmm | AC32: 20z½ | AD32: 9w1 | AE32: 10w½ | AF32: afwmm | AG32: afwmm | AH32: 22z1 | AI32: 5w0 | AL32: 29 | AM32: A van der Wolff | AN32: 21 | AO32: 9 | AP32: 6 | AQ32: 6 | AR32: 12 | AS32: 1527.2 | AT32: 104 | AU32: 1 | AV32: 1 | AW32: 1733 | AX32: 1765 | AY32: 1702
A33: 30 | B33: E | C33: Brouwer | D33: 27w1 | E33: 5z0 | F33: 51w1 | G33: 35w1 | H33: aclub | I33: 6z1 | J33: 1z0 | K33: 3w½ | L33: 14z0 | M33: aclub | N33: 10z1 | O33: 12w0 | P33: aclub | Q33: 47w0 | R33: 11z0 | S33: 23z½ | T33: 20w1 | U33: 68w0 | V33: 21z0 | W33: 31w½ | X33: 16z0 | Y33: 17z1 | Z33: aclub | AA33: 37w1 | AB33: 27z0 | AC33: 46z1 | AD33: 32w1 | AE33: 9z0 | AF33: 22w0 | AG33: afwmm | AH33: 36z½ | AI33: 18w0 | AL33: 30 | AM33: E Brouwer | AN33: 27 | AO33: 10 | AP33: 4 | AQ33: 13 | AR33: 12 | AS33: 1520.8 | AT33: 94 | AU33: -1 | AV33: 1 | AW33: 1705 | AX33: 1678 | AY33: 1763
A34: 31 | B34: J | C34: Naastepad | D34: 59z1 | E34: 68w½ | F34: 8w0 | G34: 33z1 | H34: afwmm | I34: 21z0 | J34: afwmm | K34: 26w0 | L34: afwmm | M34: 28w1 | N34: afwmm | O34: 22z½ | P34: 53w1 | Q34: 20z0 | R34: 36w½ | S34: afwmm | T34: 38w1 | U34: afwmm | V34: 23z½ | W34: 30z½ | X34: 24w1 | Y34: 21w1 | Z34: afwmm | AA34: 27z1 | AB34: 12w1 | AC34: afwmm | AD34: aclub | AE34: afwmm | AF34: afwmm | AG34: afwmm | AH34: afwmm | AI34: afwmm | AL34: 31 | AM34: J Naastepad | AN34: 18 | AO34: 9 | AP34: 5 | AQ34: 4 | AR34: 11.5 | AS34: 1515.2 | AT34: 106 | AU34: 2 | AV34: 1 | AW34: 1700 | AX34: 1756 | AY34: 1661
A35: 32 | B35: B | C35: Dudink | D35: 12z0 | E35: 34w1 | F35: 56z1 | G35: 47w1 | H35: afwmm | I35: 14z½ | J35: 7w0 | K35: 29z0 | L35: 71w1 | M35: 37z1 | N35: 11w1 | O35: afwmm | P35: 2w½ | Q35: 6z½ | R35: 10z0 | S35: 21w1 | T35: afwmm | U35: 9z0 | V35: aclub | W35: 8z0 | X35: afwmm | Y35: aclad | Z35: aclad | AA35: 20w0 | AB35: aclub | AC35: aclub | AD35: 30z0 | AE35: aclad | AF35: 38w1 | AG35: aclad | AH35: afwmm | AI35: afwmm | AL35: 32 | AM35: B Dudink | AN35: 19 | AO35: 8 | AP35: 3 | AQ35: 8 | AR35: 9.5 | AS35: 1503.6 | AT35: 93 | AU35: -1 | AV35: 1 | AW35: 1840 | AX35: 1724 | AY35: 1927
A36: 33 | B36: R | C36: van Dijkhuizen | D36: 55w1 | E36: 44z½ | F36: 4z0 | G36: 31w0 | H36: 58z1 | I36: afwmm | J36: afwmm | K36: 51w1 | L36: 24z0 | M36: 15z1 | N36: afwmm | O36: aclub | P36: 27w0 | Q36: 22w½ | R36: 25z0 | S36: 42w1 | T36: 40z½ | U36: 45w0 | V36: 62z1 | W36: 63w0 | X36: afwmm | Y36: 39z1 | Z36: 48w½ | AA36: 53z½ | AB36: afwmm | AC36: aclub | AD36: 38z½ | AE36: 40w½ | AF36: 52w1 | AG36: afwmm | AH36: aclub | AI36: aclub | AL36: 33 | AM36: R van Dijkhuizen | AN36: 22 | AO36: 8 | AP36: 7 | AQ36: 7 | AR36: 11.5 | AS36: 1503 | AT36: 92 | AU36: 0 | AV36: 2 | AW36: 1366 | AX36: 1522 | AY36: 1227
A37: 34 | B37: R | C37: Bouwman | D37: afwmm | E37: 32z0 | F37: 26w1 | G37: 46w1 | H37: 16z1 | I37: aclub | J37: 9z0 | K37: afwmm | L37: 23w½ | M37: 49w½ | N37: aclub | O37: 24z½ | P37: 5z½ | Q37: aclub | R37: aclad | S37: 13w0 | T37: afwmm | U37: 27z0 | V37: 15w½ | W37: 45z½ | X37: aclad | Y37: afwmm | Z37: aclub | AA37: aclub | AB37: 36w1 | AC37: afwmm | AD37: afwmm | AE37: aclub | AF37: afwmm | AG37: 26z½ | AH37: aclub | AI37: afwmm | AL37: 34 | AM37: R Bouwman | AN37: 15 | AO37: 4 | AP37: 7 | AQ37: 4 | AR37: 7.5 | AS37: 1502.3 | AT37: 96 | AU37: -1 | AV37: -1 | AW37: 1645 | AX37: 1689 | AY37: 1622
A38: 35 | B38: W | C38: Strating | D38: afwmm | E38: afwmm | F38: 49w1 | G38: 30z0 | H38: aclub | I38: 47z1 | J38: afwmm | K38: 27w1 | L38: 9z1 | M38: aclub | N38: afwmm | O38: afwmm | P38: aclub | Q38: 7w½ | R38: 1w0 | S38: afwmm | T38: 6z0 | U38: afwmm | V38: 68w1 | W38: 3z½ | X38: afwmm | Y38: 4w0 | Z38: aclub | AA38: 10z½ | AB38: afwmm | AC38: afwmm | AD38: aclad | AE38: 25z1 | AF38: afwmm | AG38: aclub | AH38: afwmm | AI38: afwmm | AL38: 35 | AM38: W Strating | AN38: 13 | AO38: 6 | AP38: 3 | AQ38: 4 | AR38: 7.5 | AS38: 1498.8 | AT38: 105 | AU38: -1 | AV38: -2 | AW38: 1873 | AX38: 1813 | AY38: 1899
A39: 36 | B39: J | C39: Schagen | D39: 10w½ | E39: 72z0 | F39: 19w1 | G39: afwmm | H39: 62z½ | I39: 57w1 | J39: 22z1 | K39: 12w0 | L39: 26z½ | M39: 24z0 | N39: 37w½ | O39: 27w½ | P39: afwmm | Q39: 52z1 | R39: 31z½ | S39: 25w½ | T39: 17z½ | U39: 23w½ | V39: 20z½ | W39: 46w½ | X39: afwmm | Y39: afwmm | Z39: afwmm | AA39: afwmm | AB39: 34z0 | AC39: 19z½ | AD39: aclub | AE39: aclub | AF39: 24w½ | AG39: afwmm | AH39: 30w½ | AI39: 25z½ | AL39: 36 | AM39: J Schagen | AN39: 23 | AO39: 4 | AP39: 15 | AQ39: 4 | AR39: 11.5 | AS39: 1437.6 | AT39: 92 | AU39: -1 | AV39: -1 | AW39: 1656 | AX39: 1656 | AY39: 1656
A40: 37 | B40: J | C40: Haijer | D40: 41w1 | E40: 52z1 | F40: 5w½ | G40: 71z½ | H40: 8w1 | I40: 9z0 | J40: 20z0 | K40: aclad | L40: 27w½ | M40: 32w0 | N40: 36z½ | O40: aclub | P40: 46w½ | Q40: 26z0 | R40: aclad | S40: 24w0 | T40: 53z½ | U40: 40w1 | V40: 19z0 | W40: 48w1 | X40: afwmm | Y40: 63w1 | Z40: 16z0 | AA40: 30z0 | AB40: 17w½ | AC40: aclub | AD40: 22w0 | AE40: 38z½ | AF40: aclad | AG40: 42z1 | AH40: afwmm | AI40: aclub | AL40: 37 | AM40: J Haijer | AN40: 24 | AO40: 7 | AP40: 8 | AQ40: 9 | AR40: 11 | AS40: 1406 | AT40: 86 | AU40: 0 | AV40: -2 | AW40: 1586 | AX40: 1604 | AY40: 1564
A41: 38 | B41: R | C41: ten Have | D41: afwmm | E41: bye | F41: afwmm | G41: 22z0 | H41: 55w1 | I41: 39z1 | J41: 11w0 | K41: 47z0 | L41: 54z1 | M41: 19w½ | N41: 42w1 | O41: 13z0 | P41: afwzm | Q41: 28w1 | R41: afwmm | S41: 53w½ | T41: 31z0 | U41: 51w0 | V41: 58z1 | W41: 43z0 | X41: 52w½ | Y41: 50z1 | Z41: 22w½ | AA41: 48w1 | AB41: 49z1 | AC41: 17z0 | AD41: 33w½ | AE41: 37w½ | AF41: 32z0 | AG41: afwmm | AH41: 41w1 | AI41: 57z0 | AL41: 38 | AM41: R ten Have | AN41: 26 | AO41: 10 | AP41: 6 | AQ41: 10 | AR41: 13 | AS41: 1374.4 | AT41: 88 | AU41: 0 | AV41: -1 | AW41: 1514 | AX41: 1528 | AY41: 1492
A42: 39 | B42: L | C42: Parlevliet | D42: 60w1 | E42: 23z0 | F42: afwmm | G42: 20w0 | H42: 44z1 | I42: 38w0 | J42: 40z0 | K42: 50z½ | L42: 42w0 | M42: 48w1 | N42: 40z1 | O42: afwmm | P42: afwmm | Q42: afwmm | R42: 28z½ | S42: 43w0 | T42: 66w1 | U42: 69z1 | V42: 53z0 | W42: 22w1 | X42: 54z1 | Y42: 33w0 | Z42: 49w0 | AA42: 17z0 | AB42: 55w1 | AC42: 61z1 | AD42: 42z1 | AE42: 50w1 | AF42: afwmm | AG42: bye | AH42: afwmm | AI42: 23w0 | AL42: 39 | AM42: L Parlevliet | AN42: 25 | AO42: 12 | AP42: 2 | AQ42: 11 | AR42: 13 | AS42: 1366.8 | AT42: 90 | AU42: 1 | AV42: 2 | AW42: 1454 | AX42: 1443 | AY42: 1471
A43: 40 | B43: G | C43: van der Hoff | D43: 54w0 | E43: 58z0 | F43: 59w1 | G43: 41w1 | H43: 29z0 | I43: 18z0 | J43: 39w1 | K43: 15z½ | L43: 43w1 | M43: 46z0 | N43: 39w0 | O43: aclub | P43: 44z½ | Q43: 48z1 | R43: 52w½ | S43: 22z½ | T43: 33w½ | U43: 37z0 | V43: 28w0 | W43: afwmm | X43: 50w0 | Y43: 57w1 | Z43: 41z½ | AA43: 62z1 | AB43: 53w½ | AC43: aclub | AD43: 45w½ | AE43: 33z½ | AF43: 49w0 | AG43: 64z0 | AH43: 42w½ | AI43: aclub | AL43: 40 | AM43: G van der Hoff | AN43: 28 | AO43: 7 | AP43: 10 | AQ43: 11 | AR43: 12 | AS43: 1270.7 | AT43: 83 | AU43: 2 | AV43: 1 | AW43: 1397 | AX43: 1390 | AY43: 1410
A44: 41 | B44: D | C44: Teunisse | D44: 37z0 | E44: 69w1 | F44: 27w0 | G44: 40z0 | H44: 42z1 | I44: 28w0 | J44: 51w0 | K44: 57z½ | L44: 55w0 | M44: 65z1 | N44: 43z1 | O44: 53w0 | P44: 48w0 | Q44: 45z½ | R44: 58w1 | S44: 44z½ | T44: 19w0 | U44: afwmm | V44: 66z1 | W44: 54w0 | X44: 69z1 | Y44: 60z1 | Z44: 40w½ | AA44: 56w0 | AB44: 59z1 | AC44: 55z½ | AD44: 64w½ | AE44: 65w1 | AF44: 50z½ | AG44: 43w½ | AH44: 38z0 | AI44: 66w1 | AL44: 41 | AM44: D Teunisse | AN44: 31 | AO44: 11 | AP44: 8 | AQ44: 12 | AR44: 15 | AS44: 1270 | AT44: 81 | AU44: 1 | AV44: 1 | AW44: 1368 | AX44: 1362 | AY44: 1387
A45: 42 | B45: J | C45: Smink | D45: 16z0 | E45: 60w1 | F45: 47z0 | G45: 48z0 | H45: 41w0 | I45: 69z1 | J45: 15w0 | K45: 58w1 | L45: 39z1 | M45: 43w1 | N45: 38z0 | O45: aclub | P45: 28z½ | Q45: 25w0 | R45: aclad | S45: 33z0 | T45: 45w0 | U45: 66z1 | V45: 50w1 | W45: 56w0 | X45: bye | Y45: 23z0 | Z45: 65w1 | AA45: 44z1 | AB45: 62w1 | AC45: aclub | AD45: 39w0 | AE45: 49z½ | AF45: aclad | AG45: 37w0 | AH45: 40z½ | AI45: aclub | AL45: 42 | AM45: J Smink | AN45: 26 | AO45: 10 | AP45: 3 | AQ45: 13 | AR45: 11.5 | AS45: 1262.8 | AT45: 82 | AU45: 0 | AV45: -1 | AW45: 1385 | AX45: 1366 | AY45: 1416
A46: 43 | B46: W | C46: van der Veen | D46: 58w1 | E46: 15z½ | F46: 10w0 | G46: 14w0 | H46: 26z0 | I46: 45w1 | J46: 52z0 | K46: 62w1 | L46: 40z0 | M46: 42z0 | N46: 41w0 | O46: aclub | P46: 70z1 | Q46: 65z1 | R46: 55w½ | S46: 39z1 | T46: 28w0 | U46: 60z1 | V46: 49z0 | W46: 38w1 | X46: 48z0 | Y46: afwmm | Z46: 46w½ | AA46: 22z0 | AB46: 54w½ | AC46: afwmm | AD46: 44w½ | AE46: 55z0 | AF46: 61w1 | AG46: 41z½ | AH46: bye | AI46: aclub | AL46: 43 | AM46: W van der Veen | AN46: 27 | AO46: 9 | AP46: 6 | AQ46: 12 | AR46: 12 | AS46: 1258.9 | AT46: 82 | AU46: -1 | AV46: -1 | AW46: 1418 | AX46: 1393 | AY46: 1458
A47: 44 | B47: C | C47: Overboom | D47: 75z½ | E47: 33w½ | F47: 24w0 | G47: 73z0 | H47: 39w0 | I47: 55z½ | J47: 58w1 | K47: aclad | L47: 69z1 | M47: 16z0 | N47: 50w½ | O47: aclub | P47: 40w½ | Q47: 53z0 | R47: aclad | S47: 41w½ | T47: bye | U47: 59z½ | V47: 48w0 | W47: 65w½ | X47: 22z0 | Y47: winst | Z47: 66z1 | AA47: 42w0 | AB47: 69w1 | AC47: aclub | AD47: 43z½ | AE47: 64z1 | AF47: aclad | AG47: 54w0 | AH47: afwmm | AI47: aclub | AL47: 44 | AM47: C Overboom | AN47: 24 | AO47: 6 | AP47: 9 | AQ47: 9 | AR47: 10.5 | AS47: 1234.7 | AT47: 81 | AU47: 1 | AV47: 1 | AW47: 1272 | AX47: 1313 | AY47: 1228
A48: 45 | B48: F | C48: Bouwman | D48: 63w½ | E48: 51z0 | F48: 68z0 | G48: 65w1 | H48: 19w0 | I48: 43z0 | J48: 55w1 | K48: afwmm | L48: afwmm | M48: afwmm | N48: afwmm | O48: aclub | P48: 66z½ | Q48: 41w½ | R48: 48z1 | S48: 59w1 | T48: 42z1 | U48: 33z1 | V48: 25w0 | W48: 34w½ | X48: 64z½ | Y48: 24z½ | Z48: afwmm | AA48: 49w1 | AB48: 23w0 | AC48: aclub | AD48: 40z½ | AE48: 28z0 | AF48: afwmm | AG48: afwmm | AH48: afwmm | AI48: afwmm | AL48: 45 | AM48: F Bouwman | AN48: 21 | AO48: 7 | AP48: 7 | AQ48: 7 | AR48: 10.5 | AS48: 1226.8 | AT48: 87 | AU48: -1 | AV48: -2 | AW48: 1401 | AX48: 1462 | AY48: 1342
A49: 46 | B49: K | C49: van Gent | D49: 19w½ | E49: 10z0 | F49: 15w1 | G49: 34z0 | H49: afwmm | I49: aclub | J49: 25z½ | K49: 28w1 | L49: 18z½ | M49: 40w1 | N49: aclub | O49: 23w½ | P49: 37z½ | Q49: aclub | R49: 21w0 | S49: 20z½ | T49: 24z1 | U49: 14w0 | V49: afwmm | W49: 36z½ | X49: 27w0 | Y49: 15z½ | Z49: 43z½ | AA49: aclub | AB49: afwmm | AC49: 30w0 | AD49: afwmm | AE49: afwmm | AF49: afwmm | AG49: afwmm | AH49: afwmm | AI49: afwmm | AL49: 46 | AM49: K van Gent | AN49: 19 | AO49: 4 | AP49: 9 | AQ49: 6 | AR49: 8.5 | AS49: 1211.3 | AT49: 85 | AU49: -1 | AV49: 1 | AW49: 1599 | AX49: 1608 | AY49: 1591
A50: 47 | B50: C | C50: Buysman | D50: 4w0 | E50: 56z1 | F50: 42w1 | G50: 32z0 | H50: 24z½ | I50: 35w0 | J50: 28z1 | K50: 38w1 | L50: 25w½ | M50: aclub | N50: 53z1 | O50: 15w1 | P50: aclub | Q50: 30z1 | R50: afwmm | S50: 2z0 | T50: 7w0 | U50: 26z0 | V50: 27w1 | W50: 18w0 | X50: 14z0 | Y50: 19w0 | Z50: aclub | AA50: 21z0 | AB50: afwmm | AC50: afwmm | AD50: afwmm | AE50: afwmm | AF50: afwmm | AG50: afwmm | AH50: afwmm | AI50: afwmm | AL50: 47 | AM50: C Buysman | AN50: 20 | AO50: 8 | AP50: 2 | AQ50: 10 | AR50: 9 | AS50: 1209.2 | AT50: 85 | AU50: 0 | AV50: -1 | AW50: 1658 | AX50: 1677 | AY50: 1643
A51: 48 | B51: J | C51: Schouwink | D51: 67z0 | E51: 50w1 | F51: 6z0 | G51: 42w1 | H51: 53z0 | I51: afwmm | J51: afwmm | K51: afwmm | L51: 56w0 | M51: 39z0 | N51: 65w1 | O51: aclub | P51: 41z1 | Q51: 40w0 | R51: 45w0 | S51: 70z1 | T51: 69w1 | U51: 55w1 | V51: 44z1 | W51: 37z0 | X51: 43w1 | Y51: 64w0 | Z51: 33z½ | AA51: 38z0 | AB51: 57w0 | AC51: aclub | AD51: 49z0 | AE51: 62w½ | AF51: 54z½ | AG51: 66w1 | AH51: 52w0 | AI51: aclub | AL51: 48 | AM51: J Schouwink | AN51: 26 | AO51: 10 | AP51: 3 | AQ51: 13 | AR51: 11.5 | AS51: 1207.1 | AT51: 80 | AU51: 2 | AV51: 2 | AW51: 1400 | AX51: 1371 | AY51: 1452
A52: 49 | B52: C | C52: Wessels | D52: afwmm | E52: afwmm | F52: 35z0 | G52: afwmm | H52: 69w1 | I52: afwmm | J52: afwmm | K52: 73w1 | L52: afwmm | M52: 34z½ | N52: afwmm | O52: afwmm | P52: 8z0 | Q52: afwmm | R52: 22w1 | S52: 27w0 | T52: 25z0 | U52: 50z1 | V52: 43w1 | W52: 16w0 | X52: 28z0 | Y52: 66w1 | Z52: 39z1 | AA52: 45z0 | AB52: 38w0 | AC52: 65z1 | AD52: 48w1 | AE52: 42w½ | AF52: 40z1 | AG52: 23z½ | AH52: 20w0 | AI52: 24z0 | AL52: 49 | AM52: C Wessels | AN52: 23 | AO52: 10 | AP52: 3 | AQ52: 10 | AR52: 11.5 | AS52: 1186.3 | AT52: 89 | AU52: -1 | AV52: -1 | AW52: 1491 | AX52: 1505 | AY52: 1476
A53: 50 | B53: H | C53: Muller | D53: 56w0 | E53: 48z0 | F53: afwmm | G53: 60z1 | H53: afwmm | I53: 52w0 | J53: 66z1 | K53: 39w½ | L53: 28z0 | M53: 54w1 | N53: 44z½ | O53: 59z0 | P53: 19w0 | Q53: 69w1 | R53: 51z0 | S53: 58w1 | T53: 55z1 | U53: 49w0 | V53: 42z0 | W53: 60w1 | X53: 40z1 | Y53: 38w0 | Z53: 63z½ | AA53: 57z0 | AB53: 66w1 | AC53: afwmm | AD53: 62w1 | AE53: 39z0 | AF53: 41w½ | AG53: 61z0 | AH53: 69z1 | AI53: 28w0 | AL53: 50 | AM53: H Muller | AN53: 29 | AO53: 11 | AP53: 4 | AQ53: 14 | AR53: 13 | AS53: 1180.5 | AT53: 80 | AU53: -1 | AV53: 1 | AW53: 1333 | AX53: 1336 | AY53: 1325
A54: 51 | B54: E | C54: Pot | D54: afwmm | E54: 45w1 | F54: 30z0 | G54: afwmm | H54: 21w0 | I54: aclub | J54: 41z1 | K54: 33z0 | L54: afwmm | M54: afwmm | N54: aclad | O54: afwmm | P54: afwmm | Q54: aclub | R54: 50w1 | S54: afwzm | T54: afwmm | U54: 38z1 | V54: 24w½ | W54: afwmm | X54: aclad | Y54: afwmm | Z54: afwmm | AA54: aclub | AB54: afwmm | AC54: afwmm | AD54: afwmm | AE54: aclub | AF54: afwmm | AG54: afwmm | AH54: aclub | AI54: afwmm | AL54: 51 | AM54: E Pot | AN54: 8 | AO54: 4 | AP54: 1 | AQ54: 3 | AR54: 4.5 | AS54: 1156.5 | AT54: 100 | AU54: 0 | AV54: 1 | AW54: 1575 | AX54: 1539 | AY54: 1582
A55: 52 | B55: L | C55: Griffioen | D55: 1z0 | E55: 37w0 | F55: 55z1 | G55: afwmm | H55: afwmm | I55: 50z1 | J55: 43w1 | K55: 22w1 | L55: afwmm | M55: aclub | N55: 5z0 | O55: 11z0 | P55: aclub | Q55: 36w0 | R55: 40z½ | S55: aclad | T55: afwmm | U55: 62w½ | V55: afwmm | W55: 66w1 | X55: 38z½ | Y55: 55w1 | Z55: afwmm | AA55: afwmm | AB55: afwmm | AC55: afwmm | AD55: afwmm | AE55: 53w0 | AF55: 33z0 | AG55: 58w0 | AH55: 48z1 | AI55: 65z1 | AL55: 52 | AM55: L Griffioen | AN55: 19 | AO55: 8 | AP55: 3 | AQ55: 8 | AR55: 9.5 | AS55: 1142.2 | AT55: 83 | AU55: -1 | AV55: -2 | AW55: 1633 | AX55: 1454 | AY55: 1730
A56: 53 | B56: W | C56: Woestenburg | D56: afwmm | E56: afwmm | F56: afwmm | G56: afwmm | H56: 48w1 | I56: 12z½ | J56: afwmm | K56: afwmm | L56: afwmm | M56: 7w0 | N56: 47w0 | O56: 41z1 | P56: 31z0 | Q56: 44w1 | R56: afwmm | S56: 38z½ | T56: 37w½ | U56: 16z0 | V56: 39w1 | W56: afwmm | X56: afwmm | Y56: afwmm | Z56: 24z½ | AA56: 33w½ | AB56: 40z½ | AC56: 54w1 | AD56: aclub | AE56: 52z1 | AF56: afwmm | AG56: afwmm | AH56: afwmm | AI56: afwmm | AL56: 53 | AM56: W Woestenburg | AN56: 16 | AO56: 6 | AP56: 6 | AQ56: 4 | AR56: 9 | AS56: 1141 | AT56: 98 | AU56: 0 | AV56: -1 | AW56: 1596 | AX56: 1592 | AY56: 1598
A57: 54 | B57: R | C57: Loots | D57: 40z1 | E57: 6w0 | F57: afwmm | G57: afwmm | H57: 57z½ | I57: aclub | J57: afwmm | K57: 8z0 | L57: 38w0 | M57: 50z0 | N57: aclub | O57: afwmm | P57: afwmm | Q57: aclub | R57: afwmm | S57: 65w1 | T57: afwmm | U57: afwmm | V57: 69w1 | W57: 41z1 | X57: 39w0 | Y57: afwmm | Z57: 62w½ | AA57: aclub | AB57: 43z½ | AC57: 53z0 | AD57: 61w½ | AE57: aclub | AF57: 48w½ | AG57: 44z1 | AH57: aclub | AI57: afwmm | AL57: 54 | AM57: R Loots | AN57: 16 | AO57: 5 | AP57: 5 | AQ57: 6 | AR57: 7.5 | AS57: 1128.3 | AT57: 84 | AU57: 0 | AV57: -1 | AW57: 1506 | AX57: 1388 | AY57: 1574
A58: 55 | B58: A | C58: Hommes | D58: 33z0 | E58: 22w0 | F58: 52w0 | G58: 59z1 | H58: 38z0 | I58: 44w½ | J58: 45z0 | K58: 60w1 | L58: 41z1 | M58: 57w0 | N58: 69z1 | O58: 25z0 | P58: 65w½ | Q58: 66w½ | R58: 43z½ | S58: 15w0 | T58: 50w0 | U58: 48z0 | V58: 70z0 | W58: 58w1 | X58: 62w½ | Y58: 52z0 | Z58: 61z1 | AA58: 59w½ | AB58: 39z0 | AC58: 41w½ | AD58: 65z½ | AE58: 43w1 | AF58: 69w1 | AG58: 60z½ | AH58: 57z0 | AI58: 64w½ | AL58: 55 | AM58: A Hommes | AN58: 32 | AO58: 8 | AP58: 10 | AQ58: 14 | AR58: 13 | AS58: 1083 | AT58: 78 | AU58: 0 | AV58: 1 | AW58: 1280 | AX58: 1278 | AY58: 1286
A59: 56 | B59: F | C59: Tieken | D59: 50z1 | E59: 47w0 | F59: 32w0 | G59: afwmm | H59: afwmm | I59: 58z1 | J59: 13w0 | K59: aclad | L59: 48z1 | M59: afwmm | N59: 19z1 | O59: afwmm | P59: afwmm | Q59: afwmm | R59: afwmm | S59: 26w0 | T59: afwmm | U59: afwmm | V59: afwmm | W59: 42z1 | X59: 20w0 | Y59: 28w0 | Z59: aclub | AA59: 41z1 | AB59: 63z½ | AC59: aclub | AD59: afwmm | AE59: afwmm | AF59: aclad | AG59: afwmm | AH59: afwmm | AI59: aclub | AL59: 56 | AM59: F Tieken | AN59: 13 | AO59: 6 | AP59: 1 | AQ59: 6 | AR59: 6.5 | AS59: 1053.8 | AT59: 89 | AU59: -1 | AV59: -2 | AW59: 1535 | AX59: 1560 | AY59: 1525
A60: 57 | B60: W | C60: Prins | D60: afwmm | E60: afwmm | F60: afwmm | G60: afwmm | H60: 54w½ | I60: 36z0 | J60: bye | K60: 41w½ | L60: afwmm | M60: 55z1 | N60: afwmm | O60: afwmm | P60: afwmm | Q60: afwmm | R60: afwmm | S60: afwmm | T60: afwmm | U60: afwmm | V60: winst | W60: 27z½ | X60: 13w0 | Y60: 40z0 | Z60: afwmm | AA60: 50w1 | AB60: 48z1 | AC60: afwmm | AD60: 16w0 | AE60: 22z0 | AF60: 63w0 | AG60: 69z1 | AH60: 55w1 | AI60: 38w1 | AL60: 57 | AM60: W Prins | AN60: 16 | AO60: 7 | AP60: 3 | AQ60: 6 | AR60: 8.5 | AS60: 992.4 | AT60: 84 | AU60: 1 | AV60: 2 | AW60: 1417 | AX60: 1469 | AY60: 1388
A61: 58 | B61: J | C61: F Bouwman | D61: 43z0 | E61: 40w1 | F61: 62w½ | G61: 68z0 | H61: 33w0 | I61: 56w0 | J61: 44z0 | K61: 42z0 | L61: 66w1 | M61: afwmm | N61: afwmm | O61: afwmm | P61: 69z1 | Q61: 70w½ | R61: 41z0 | S61: 50z0 | T61: 59w0 | U61: 65z½ | V61: 38w0 | W61: 55z0 | X61: 61z½ | Y61: 22w0 | Z61: afwmm | AA61: 63w0 | AB61: 60z1 | AC61: 64z0 | AD61: afwmm | AE61: 69w1 | AF61: 65w1 | AG61: 52z1 | AH61: 66z1 | AI61: afwmm | AL61: 58 | AM61: J F Bouwman | AN61: 26 | AO61: 8 | AP61: 4 | AQ61: 14 | AR61: 10 | AS61: 963.7 | AT61: 76 | AU61: -2 | AV61: -2 | AW61: 1208 | AX61: 1251 | AY61: 1150
A62: 59 | B62: J | C62: Bueno de Mesquita | D62: 31w0 | E62: afwmm | F62: 40z0 | G62: 55w0 | H62: afwmm | I62: 65w1 | J62: 69z1 | K62: afwmm | L62: afwmm | M62: afwmm | N62: 28z0 | O62: 50w1 | P62: 60z0 | Q62: afwmm | R62: 66w1 | S62: 45z0 | T62: 58z1 | U62: 44w½ | V62: 22z0 | W62: 61w½ | X62: afwmm | Y62: 65z0 | Z62: 69w0 | AA62: 55z½ | AB62: 41w0 | AC62: 62z0 | AD62: 76w1 | AE62: 70w0 | AF62: 66z0 | AG62: afwmm | AH62: afwmm | AI62: 60w1 | AL62: 59 | AM62: J Bueno de Mesquita | AN62: 23 | AO62: 7 | AP62: 3 | AQ62: 13 | AR62: 8.5 | AS62: 846 | AT62: 75 | AU62: 1 | AV62: 1 | AW62: 1211 | AX62: 1194 | AY62: 1232
A63: 60 | B63: R | C63: van de Krol | D63: 39z0 | E63: 42z0 | F63: afwmm | G63: 50w0 | H63: 70w½ | I63: bye | J63: 61z½ | K63: 55z0 | L63: afwmm | M63: 69w1 | N63: 66w1 | O63: 65z1 | P63: 59w1 | Q63: afwmm | R63: afwmm | S63: afwmm | T63: 16z0 | U63: 43w0 | V63: afwmm | W63: 50z0 | X63: 70z1 | Y63: 41w0 | Z63: afwmm | AA63: afwmm | AB63: 58w0 | AC63: 69z0 | AD63: afwmm | AE63: 66z½ | AF63: afwmm | AG63: 55w½ | AH63: 65w1 | AI63: 59z0 | AL63: 60 | AM63: R van de Krol | AN63: 21 | AO63: 6 | AP63: 4 | AQ63: 11 | AR63: 8 | AS63: 837.5 | AT63: 76 | AU63: -1 | AV63: -1 | AW63: 1179 | AX63: 1201 | AY63: 1156
A64: 61 | B64: H | C64: Bos | D64: afwmm | E64: 62z½ | F64: 9w0 | G64: 74z0 | H64: 15z0 | I64: afwmm | J64: 60w½ | K64: 66w½ | L64: afwmm | M64: afwmm | N64: afwmm | O64: afwmm | P64: afwmm | Q64: afwmm | R64: afwmm | S64: 69z1 | T64: afwmm | U64: 70w1 | V64: 65z½ | W64: 59z½ | X64: 58w½ | Y64: afwmm | Z64: 55w0 | AA64: 66z1 | AB64: 64w½ | AC64: 39w0 | AD64: 54z½ | AE64: afwmm | AF64: 43z0 | AG64: 50w1 | AH64: afwmm | AI64: afwmm | AL64: 61 | AM64: H Bos | AN64: 18 | AO64: 4 | AP64: 8 | AQ64: 6 | AR64: 8 | AS64: 823.2 | AT64: 79 | AU64: 0 | AV64: 1 | AW64: 1291 | AX64: 1310 | AY64: 1277
A65: 62 | B65: G | C65: Pannegieter | D65: afwmm | E65: 61w½ | F65: 58z½ | G65: afwmm | H65: 36w½ | I65: afwmm | J65: 18w0 | K65: 43z0 | L65: afwmm | M65: afwmm | N65: afwmm | O65: afwmm | P65: afwmm | Q65: afwmm | R65: 65w1 | S65: 66z1 | T65: afwmm | U65: 52z½ | V65: 33w0 | W65: afwmm | X65: 55z½ | Y65: 69w1 | Z65: 54z½ | AA65: 40w0 | AB65: 42z0 | AC65: 59w1 | AD65: 50z0 | AE65: 48z½ | AF65: 64w0 | AG65: 65z0 | AH65: afwmm | AI65: afwmm | AL65: 62 | AM65: G Pannegieter | AN65: 19 | AO65: 4 | AP65: 7 | AQ65: 8 | AR65: 7.5 | AS65: 789 | AT65: 78 | AU65: -1 | AV65: -1 | AW65: 1325 | AX65: 1278 | AY65: 1361
A66: 63 | B66: R | C66: Dijkstra | D66: 45z½ | E66: afwmm | F66: afwmm | G66: afwmm | H66: afwmm | I66: afwmm | J66: afwmm | K66: afwmm | L66: afwmm | M66: afwmm | N66: afwmm | O66: afwmm | P66: afwmm | Q66: afwmm | R66: afwmm | S66: afwmm | T66: afwmm | U66: afwmm | V66: afwmm | W66: 33z1 | X66: 5w0 | Y66: 37z0 | Z66: 50w½ | AA66: 58z1 | AB66: 56w½ | AC66: afwmm | AD66: afwmm | AE66: afwmm | AF66: 57z1 | AG66: afwmm | AH66: afwmm | AI66: 16w½ | AL66: 63 | AM66: R Dijkstra | AN66: 9 | AO66: 3 | AP66: 4 | AQ66: 2 | AR66: 5 | AS66: 729.8 | AT66: 99 | AU66: -1 | AV66: 1 | AW66: 1535 | AX66: 1485 | AY66: 1547
A67: 64 | B67: C | C67: de Boorder | D67: afwmm | E67: gnlid | F67: gnlid | G67: gnlid | H67: gnlid | I67: gnlid | J67: gnlid | K67: gnlid | L67: gnlid | M67: gnlid | N67: gnlid | O67: gnlid | P67: gnlid | Q67: gnlid | R67: gnlid | S67: gnlid | T67: gnlid | U67: gnlid | V67: gnlid | W67: gnlid | X67: 45w½ | Y67: 48z1 | Z67: 9w0 | AA67: 25z0 | AB67: 61z½ | AC67: 58w1 | AD67: 41z½ | AE67: 44w0 | AF67: 62z1 | AG67: 40w1 | AH67: 28w0 | AI67: 55z½ | AL67: 64 | AM67: C de Boorder | AN67: 12 | AO67: 4 | AP67: 4 | AQ67: 4 | AR67: 6 | AS67: 718.8 | AT67: 87 | AU67: 0 | AV67: -1 | AW67: 1453 | AX67: 1392 | AY67: 1477
A68: 65 | B68: N | C68: van Heerden | D68: afwmm | E68: afwmm | F68: 13w0 | G68: 45z0 | H68: 66w0 | I68: 59z0 | J68: afwmm | K68: 69w1 | L68: 70z1 | M68: 41w0 | N68: 48z0 | O68: 60w0 | P68: 55z½ | Q68: 43w0 | R68: 62z0 | S68: 54z0 | T68: afwmm | U68: 58w½ | V68: 61w½ | W68: 44z½ | X68: 66z0 | Y68: 59w1 | Z68: 42z0 | AA68: 69z0 | AB68: bye | AC68: 49w0 | AD68: 55w½ | AE68: 41z0 | AF68: 58z0 | AG68: 62w1 | AH68: 60z0 | AI68: 52w0 | AL68: 65 | AM68: N van Heerden | AN68: 27 | AO68: 4 | AP68: 5 | AQ68: 18 | AR68: 6.5 | AS68: 694.8 | AT68: 73 | AU68: -1 | AV68: 1 | AW68: 1142 | AX68: 1093 | AY68: 1212
A69: 66 | B69: P | C69: van Diepen | D69: gnlid | E69: gnlid | F69: 22w0 | G69: 19z0 | H69: 65z1 | I69: 25w0 | J69: 50w0 | K69: 61z½ | L69: 58z0 | M69: 70w½ | N69: 60z0 | O69: 69w1 | P69: 45w½ | Q69: 55z½ | R69: 59z0 | S69: 62w0 | T69: 39z0 | U69: 42w0 | V69: 41w0 | W69: 52z0 | X69: 65w1 | Y69: 49z0 | Z69: 44w0 | AA69: 61w0 | AB69: 50z0 | AC69: winst | AD69: 69z0 | AE69: 60w½ | AF69: 59w1 | AG69: 48z0 | AH69: 58w0 | AI69: 41z0 | AL69: 66 | AM69: P van Diepen | AN69: 30 | AO69: 5 | AP69: 5 | AQ69: 20 | AR69: 7.5 | AS69: 688.3 | AT69: 74 | AU69: 1 | AV69: -1 | AW69: 1129 | AX69: 1083 | AY69: 1200
A70: 67 | B70: R | C70: Velthuis | D70: 48w1 | E70: 28z1 | F70: 71w½ | G70: afwmm | H70: afwmm | I70: afwmm | J70: gnlid | K70: gnlid | L70: gnlid | M70: gnlid | N70: gnlid | O70: gnlid | P70: gnlid | Q70: gnlid | R70: gnlid | S70: gnlid | T70: gnlid | U70: gnlid | V70: gnlid | W70: gnlid | X70: gnlid | Y70: gnlid | Z70: gnlid | AA70: gnlid | AB70: gnlid | AC70: gnlid | AD70: gnlid | AE70: gnlid | AF70: gnlid | AG70: gnlid | AH70: gnlid | AI70: gnlid | AL70: 67 | AM70: R Velthuis | AN70: 3 | AO70: 2 | AP70: 1 | AQ70: 0 | AR70: 2.5 | AS70: 686.5 | AT70: 108 | AU70: 1 | AV70: 1 | AW70: 1592 | AX70: 1767 | AY70: 1580
A71: 68 | B71: R | C71: Kooiman | D71: 14w0 | E71: 31z½ | F71: 45w1 | G71: 58w1 | H71: afwmm | I71: afwmm | J71: afwmm | K71: afwmm | L71: afwmm | M71: afwmm | N71: afwmm | O71: afwmm | P71: afwmm | Q71: afwzm | R71: afwmm | S71: afwmm | T71: afwmm | U71: 30z1 | V71: 35z0 | W71: afwmm | X71: afwmm | Y71: afwmm | Z71: afwmm | AA71: afwmm | AB71: afwmm | AC71: afwmm | AD71: afwmm | AE71: afwmm | AF71: afwmm | AG71: afwmm | AH71: afwmm | AI71: afwmm | AL71: 68 | AM71: R Kooiman | AN71: 6 | AO71: 3 | AP71: 1 | AQ71: 2 | AR71: 3.5 | AS71: 629.8 | AT71: 101 | AU71: 0 | AV71: -2 | AW71: 1636 | AX71: 1710 | AY71: 1626
A72: 69 | B72: J | C72: Mus | D72: 28w0 | E72: 41z0 | F72: 29w0 | G72: 70z1 | H72: 49z0 | I72: 42w0 | J72: 59w0 | K72: 65z0 | L72: 44w0 | M72: 60z0 | N72: 55w0 | O72: 66z0 | P72: 58w0 | Q72: 50z0 | R72: afwmm | S72: 61w0 | T72: 48z0 | U72: 39w0 | V72: 54z0 | W72: 70w1 | X72: 41w0 | Y72: 62z0 | Z72: 59z1 | AA72: 65w1 | AB72: 44z0 | AC72: 60w1 | AD72: 66w1 | AE72: 58z0 | AF72: 55z0 | AG72: 57w0 | AH72: 50w0 | AI72: 76z0 | AL72: 69 | AM72: J Mus | AN72: 31 | AO72: 6 | AP72: 0 | AQ72: 25 | AR72: 6 | AS72: 543.3 | AT72: 73 | AU72: 1 | AV72: -1 | AW72: 1090 | AX72: 1049 | AY72: 1152
A73: 70 | B73: T | C73: Polder | D73: 71z0 | E73: 24z0 | F73: 25w0 | G73: 69w0 | H73: 60z½ | I73: afwmm | J73: afwmm | K73: afwmm | L73: 65w0 | M73: 66z½ | N73: afwmm | O73: afwmm | P73: 43w0 | Q73: 58z½ | R73: winst | S73: 48w0 | T73: afwmm | U73: 61z0 | V73: 55w1 | W73: 69z0 | X73: 60w0 | Y73: afwzm | Z73: afwmm | AA73: afwmm | AB73: afwmm | AC73: afwzm | AD73: afwmm | AE73: 59z1 | AF73: afwmm | AG73: afwmm | AH73: afwmm | AI73: afwmm | AL73: 70 | AM73: T Polder | AN73: 16 | AO73: 3 | AP73: 3 | AQ73: 10 | AR73: 4.5 | AS73: 537.3 | AT73: 74 | AU73: -1 | AV73: -1 | AW73: 1239 | AX73: 1062 | AY73: 1327
A74: 71 | B74: A | C74: Bruidegom | D74: 70w1 | E74: 29z1 | F74: 67z½ | G74: 37w½ | H74: 20z0 | I74: afwmm | J74: 23w0 | K74: 16w½ | L74: 32z0 | M74: afwmm | N74: afwmm | O74: afwmm | P74: afwmm | Q74: afwmm | R74: afwmm | S74: afwmm | T74: afwmm | U74: afwmm | V74: afwmm | W74: afwmm | X74: afwmm | Y74: afwmm | Z74: afwmm | AA74: afwmm | AB74: afwmm | AC74: afwmm | AD74: afwmm | AE74: afwmm | AF74: afwmm | AG74: afwmm | AH74: afwmm | AI74: afwmm | AL74: 71 | AM74: A Bruidegom | AN74: 8 | AO74: 2 | AP74: 3 | AQ74: 3 | AR74: 3.5 | AS74: 535.7 | AT74: 79 | AU74: 0 | AV74: -1 | AW74: 1549 | AX74: 1584 | AY74: 1541
A75: 72 | B75: R | C75: de Brouwer | D75: afwmm | E75: 36w1 | F75: 12z0 | G75: afwmm | H75: 73w1 | I75: afwmm | J75: afwmm | K75: 14w0 | L75: afwmm | M75: aclub | N75: afwmm | O75: afwzm | P75: aclub | Q75: afwmm | R75: afwmm | S75: afwmm | T75: afwmm | U75: afwmm | V75: afwmm | W75: gnlid | X75: gnlid | Y75: gnlid | Z75: gnlid | AA75: gnlid | AB75: gnlid | AC75: gnlid | AD75: gnlid | AE75: gnlid | AF75: gnlid | AG75: gnlid | AH75: gnlid | AI75: gnlid | AL75: 72 | AM75: R de Brouwer | AN75: 4 | AO75: 2 | AP75: 0 | AQ75: 2 | AR75: 2 | AS75: 517.3 | AT75: 86 | AU75: 2 | AV75: 2 | AW75: 1711 | AX75: 1642 | AY75: 1719
A76: 73 | B76: J | C76: Tuinstra | D76: 24w1 | E76: 27z0 | F76: 23w0 | G76: 44w1 | H76: 72z0 | I76: 74w1 | J76: 17z0 | K76: 49z0 | L76: gnlid | M76: gnlid | N76: gnlid | O76: gnlid | P76: gnlid | Q76: gnlid | R76: gnlid | S76: gnlid | T76: gnlid | U76: gnlid | V76: gnlid | W76: gnlid | X76: gnlid | Y76: gnlid | Z76: gnlid | AA76: gnlid | AB76: gnlid | AC76: gnlid | AD76: gnlid | AE76: gnlid | AF76: gnlid | AG76: gnlid | AH76: gnlid | AI76: gnlid | AL76: 73 | AM76: J Tuinstra | AN76: 8 | AO76: 3 | AP76: 0 | AQ76: 5 | AR76: 3 | AS76: 454.3 | AT76: 77 | AU76: 0 | AV76: -2 | AW76: 1454 | AX76: 1495 | AY76: 1445
A77: 74 | B77: M | C77: Grimbergen | D77: 21z½ | E77: 18w0 | F77: afwmm | G77: 61w1 | H77: afwmm | I77: 73z0 | J77: gnlid | K77: gnlid | L77: gnlid | M77: gnlid | N77: gnlid | O77: gnlid | P77: gnlid | Q77: gnlid | R77: gnlid | S77: gnlid | T77: gnlid | U77: gnlid | V77: gnlid | W77: gnlid | X77: gnlid | Y77: gnlid | Z77: gnlid | AA77: gnlid | AB77: gnlid | AC77: gnlid | AD77: gnlid | AE77: gnlid | AF77: gnlid | AG77: gnlid | AH77: gnlid | AI77: gnlid | AL77: 74 | AM77: M Grimbergen | AN77: 4 | AO77: 1 | AP77: 1 | AQ77: 2 | AR77: 1.5 | AS77: 332.8 | AT77: 77 | AU77: 0 | AV77: -1 | AW77: 1638 | AX77: 1446 | AY77: 1655
A78: 75 | B78: W | C78: Possel | D78: 44w½ | E78: gnlid | F78: gnlid | G78: gnlid | H78: gnlid | I78: gnlid | J78: gnlid | K78: gnlid | L78: gnlid | M78: gnlid | N78: gnlid | O78: gnlid | P78: gnlid | Q78: gnlid | R78: gnlid | S78: gnlid | T78: gnlid | U78: gnlid | V78: gnlid | W78: gnlid | X78: gnlid | Y78: gnlid | Z78: gnlid | AA78: gnlid | AB78: gnlid | AC78: gnlid | AD78: gnlid | AE78: gnlid | AF78: gnlid | AG78: gnlid | AH78: gnlid | AI78: gnlid | AL78: 75 | AM78: W Possel | AN78: 1 | AO78: 0 | AP78: 1 | AQ78: 0 | AR78: 0.5 | AS78: 282.5 | AT78: 88 | AU78: 1 | AV78: 1 | AW78: 1493 | AX78: 1228 | AY78: 1500
A79: 76 | B79: J | C79: de Heus | D79: afwmm | E79: afwmm | F79: afwmm | G79: afwmm | H79: afwmm | I79: afwmm | J79: afwmm | K79: afwmm | L79: afwmm | M79: afwmm | N79: afwmm | O79: afwmm | P79: afwmm | Q79: afwmm | R79: afwmm | S79: afwmm | T79: afwmm | U79: afwmm | V79: afwmm | W79: afwmm | X79: afwmm | Y79: afwmm | Z79: afwmm | AA79: afwmm | AB79: afwmm | AC79: 28w0 | AD79: 59z0 | AE79: afwmm | AF79: afwmm | AG79: afwmm | AH79: afwmm | AI79: 69w1 | AL79: 76 | AM79: J de Heus | AN79: 3 | AO79: 1 | AP79: 0 | AQ79: 2 | AR79: 1 | AS79: 273 | AT79: 75 | AU79: 1 | AV79: 1 | AW79: 1492 | AX79: 1143 | AY79: 1518

Sheet W3
A3: Expectation = Table [-800, +800]
A4: 2000 | C4: 2w1 | D4: 3w1
A5: 2200 | C5: 1z0
A6: 2000 | D6: 1z0
